Cogmind - Beta 15 @@@ ROGUE MODE // 2025.09.08 @ 16:09:49 Player: Dosh Result: Escaped! Performance ------------- Evolutions (9) 4500 Regions Visited (33) 6600 Robots Destroyed (598) 2990 Value Destroyed (29682) 29682 Prototype IDs (77) 1540 Alien Tech Used (8) 1600 Bonus (18431) 18431 TOTAL SCORE: 65343 Bonus ------- High Alert Combat Kills 5155 Follower Combat Kills 2631 Entered Garrisons 200 Network Hubs Disabled 400 Met Data Miner 300 Acquired ECA 300 Met Warlord at Base 500 MAIN.C Attacked Warlord 500 Warlord Defense Kills 1510 Built Enhanced Grunts 300 Met R17 at Cetus 500 Met R17 at Research 2000 Met Warlord at Research 2000 Win 3000 Friendly Fire -865 Cogmind --------- Core Integrity 1291/1850 Matter 218/300 Energy 248/440 System Corruption 0% +Membrane Temperature Cool (8) Movement Walking (125) Location To Epsilon Eridani Parts ------- > --- POWER (4) -------- Light Quantum Reactor Improved Quantum Reactor > --- PROPULSION (7) --- Improved Thunder Leg Heavy Shield Leg High-density Centrium Leg High-density Centrium Leg > --- UTILITY (11) ----- High-capacity Storage Unit Experimental Optical Array Improved Transmission Jammer AEGIS Remote Shield Improved Component Analysis Suite Mini Drone Bay (1/3) Spacefold Activator > --- WEAPON (3) ------- Enhanced Nova Cannon Enhanced Nova Cannon > --- INVENTORY (20) --- Improved Thunder Leg Improved Thunder Leg High-density Centrium Leg High-density Centrium Leg Mini Drone Bay (3/3) High-powered Transdimensional Reconstructor HERF Cannon Compact HERF Cannon Nova Cannon Enhanced Nova Cannon Heavy Gauss Cannon Linear Accelerator Peak State ------------ > --- POWER ------------ Compact Particle Reactor Quantum Reactor Improved Quantum Reactor Improved Quantum Reactor > --- PROPULSION ------- Biometal Leg Heavy Shield Leg Heavy Shield Leg High-density Centrium Leg High-density Centrium Leg > --- UTILITY ---------- 2N-1CE's Frost Array High-capacity Storage Unit Experimental Optical Array Advanced Signal Interpreter Improved Transmission Jammer Heavy Regenerative Plating Experimental EM Shield Advanced Force Field Mini Drone Bay Spacefold Activator > --- WEAPON ----------- HERF Cannon Compact HERF Cannon Enhanced Nova Cannon > --- INVENTORY -------- Light Quantum Reactor Improved Quantum Reactor Centrium Leg Heavy Shield Leg Heavy Shield Leg High-density Centrium Leg High-density Centrium Leg Advanced Energy Well Terrain Scanner AEGIS Remote Shield Improved Component Analysis Suite Mini Drone Bay High-powered Transdimensional Reconstructor Nova Cannon Enhanced Nova Cannon Enhanced Nova Cannon Fusion Bomb Launcher [Rating: 226] Favorites ----------- Power Cooled Ion Engine Engine Cooled Ion Engine Power Core Light Fission Core Reactor Quantum Reactor Propulsion Enhanced Flexi-carbon Leg Treads Light Treads Leg Enhanced Flexi-carbon Leg Wheel Armored Huge Wheel Utility High-capacity Storage Unit Device Experimental Sensor Array Storage High-capacity Storage Unit Processor Advanced Signal Interpreter Hackware Hacking Suite Protection Hardened Heavy Armor Plating Artifact Spacefold Activator Weapon Lightning Gun Energy Gun Lightning Gun Energy Cannon Enhanced Nova Cannon Ballistic Gun Advanced KE Penetrator Launcher Grenade Launcher Special Weapon Welding Torch Impact Weapon Core Stripper Build | -11 -10 -10 -9 -9 -8 -8 -7 -7 -7 -7 -6 -6 -6 -6 -6 -5 -5 -5 -5 -5 -5 -4 -4 -4 -4 -3 -3 -3 -2 -2 -2 -1 -1 ------- Run | Yrd Mat Min Mat Min Mat Gar Fac Low Low Dat Pro Fac Low Low Zio Pro Fac Ext Cet Arc Hub Fac Upp Upp War Pro Res Tes Res Qua Sec Acc Com Slots Evolved 18 | . . . 2 . 2 . 2 . . . . 2 . . . . 2 . . . . 2 . . . . 2 . 2 . . 2 . Power 3 | . . . . . 1 . . . . . . 1 . . . . . . . . . . . . . . . . 1 . . . . Propulsion 5 | . . . 1 . . . . . . . . 1 . . . . 1 . . . . 1 . . . . . . . . . 1 . Utility 9 | . . . 1 . 1 . 1 . . . . . . . . . 1 . . . . 1 . . . . 2 . 1 . . 1 . Weapon 1 | . . . . . . . 1 . . . . . . . . . . . . . . . . . . . . . . . . . . Parts Attached 315 | 6 9 5 26 2 20 9 17 4 1 10 11 9 1 . . 7 14 6 7 5 8 15 5 1 19 . 8 10 15 28 16 14 7 Power 48 | 1 1 1 3 . 1 1 . . . 1 2 1 1 . . . 2 1 2 2 . 6 2 . 2 . 1 . 4 6 4 . 3 Engine 13 | 1 1 1 3 . 1 1 . . . 1 . 1 . . . . 2 1 . . . . . . . . . . . . . . . Core 3 | . . . . . . . . . . . 1 . . . . . . . . . . 1 1 . . . . . . . . . . Reactor 32 | . . . . . . . . . . . 1 . 1 . . . . . 2 2 . 5 1 . 2 . 1 . 4 6 4 . 3 Propulsion 71 | 2 1 3 6 1 7 1 2 . . 2 6 . . . . . . . 2 . 1 2 1 . 7 . 2 2 7 4 6 3 3 Treads 25 | 2 1 3 6 1 6 1 1 . . 1 . . . . . . . . 2 . 1 . . . . . . . . . . . . Leg 44 | . . . . . . . . . . 1 6 . . . . . . . . . . 2 1 . 7 . 2 2 7 4 6 3 3 Wheel 2 | . . . . . 1 . 1 . . . . . . . . . . . . . . . . . . . . . . . . . . Hover . | . . . . . . . . . . . . . . . . . . . . . . . . . . . . . . . . . . Flight . | . . . . . . . . . . . . . . . . . . . . . . . . . . . . . . . . . . Utility 113 | 1 4 1 9 1 6 1 3 . . 5 2 4 . . . 5 4 5 3 3 3 6 1 1 8 . 3 5 2 14 5 8 . Device 59 | . . 1 3 1 2 . 1 . . 1 1 1 . . . 3 3 5 1 2 2 1 1 1 4 . 3 3 1 11 2 5 . Storage 8 | 1 1 . 1 . 1 . . . . . 1 . . . . . 1 . . . . . . . 1 . . . . . . 1 . Processor 9 | . . . . . 1 . 1 . . . . 2 . . . . . . . . . 2 . . . . . 1 1 . . 1 . Hackware 6 | . . . . . 1 . . . . . . . . . . . . . . . . 1 . . 1 . . 1 . 1 . 1 . Protection 29 | . 3 . 5 . 1 1 1 . . 4 . 1 . . . 2 . . 2 1 1 2 . . 2 . . . . 2 1 . . Artifact 2 | . . . . . . . . . . . . . . . . . . . . . . . . . . . . . . . 2 . . Weapon 83 | 2 3 . 8 . 6 6 12 4 1 2 1 4 . . . 2 8 . . . 4 1 1 . 2 . 2 3 2 4 1 3 1 Energy Gun 28 | 2 1 . 4 . 1 3 6 1 . 1 . 2 . . . . 7 . . . . . . . . . . . . . . . . Energy Cannon 38 | . . . 2 . 2 2 6 3 . 1 1 1 . . . 2 1 . . . . . 1 . 2 . 2 3 1 3 1 3 1 Ballistic Gun 8 | . 1 . . . 3 . . . . . . . . . . . . . . . 3 1 . . . . . . . . . . . Ballistic Cannon . | . . . . . . . . . . . . . . . . . . . . . . . . . . . . . . . . . . Launcher 7 | . 1 . 1 . . 1 . . 1 . . 1 . . . . . . . . 1 . . . . . . . 1 . . . . Special Weapon 1 | . . . 1 . . . . . . . . . . . . . . . . . . . . . . . . . . . . . . Impact Weapon 1 | . . . . . . . . . . . . . . . . . . . . . . . . . . . . . . 1 . . . Slashing Weapon . | . . . . . . . . . . . . . . . . . . . . . . . . . . . . . . . . . . Piercing Weapon . | . . . . . . . . . . . . . . . . . . . . . . . . . . . . . . . . . . Special Melee Weapon . | . . . . . . . . . . . . . . . . . . . . . . . . . . . . . . . . . . Unidentified Prototypes 56 | . . 1 3 1 1 . 2 . . 1 2 1 . . . 1 5 . 2 . 1 1 . . 7 . . 8 1 9 9 . . Corrupted Parts 24 | . . 2 . . . . . . . 1 11 . 1 . . 2 . . . 1 1 . . . 2 . . . . . 3 . . System Corruption 124 | . . 5 . . . . . . . 6 74 . 8 . . 5 . . . 4 1 . . . 11 . . . . . 10 . . Parts Lost 77 | . 4 . 3 . 6 . 1 . . 6 1 3 . . . . 12 1 1 . 5 6 . . . . . 3 2 4 10 . 9 Power 14 | . . . . . . . . . . 1 . . . . . . 2 . 1 . 1 4 . . . . . . . 1 1 . 3 Propulsion 13 | . 1 . . . 1 . . . . 1 1 . . . . . 2 . . . . 1 . . . . . 1 . . 3 . 2 Utility 24 | . 1 . 1 . 2 . . . . 1 . . . . . . 4 . . . 3 . . . . . . 1 2 1 5 . 3 Weapon 26 | . 2 . 2 . 3 . 1 . . 3 . 3 . . . . 4 1 . . 1 1 . . . . . 1 . 2 1 . 1 Highest Loss Streak 9 | . 3 . 1 . 2 . 1 . . 6 1 1 . . . . 7 1 1 . 3 4 . . . . . 2 2 2 4 . 9 To Critical Strikes 4 | . . . . . . . . . . . . . . . . . . . . . . . . . . . . . . . 2 . 2 Average Backups 17 | . 8 13 18 19 19 19 18 17 18 17 18 17 19 19 19 18 17 17 17 17 17 17 19 18 17 19 19 19 18 18 17 17 17 Power 1 | . . . 1 2 1 1 1 1 1 . 1 . 1 1 1 1 1 2 2 2 1 1 . . . 1 1 1 2 2 1 2 2 Propulsion 3 | . 2 4 4 5 5 3 3 2 2 3 5 3 3 3 3 3 1 . 1 1 1 . 3 5 2 3 3 2 3 3 2 4 5 Utility 7 | . 3 5 7 7 7 6 5 4 5 4 5 7 8 8 8 7 6 9 9 9 10 9 10 8 9 10 8 9 8 7 7 5 4 Weapon 5 | . 1 1 4 4 5 8 8 10 10 7 7 7 7 7 7 7 8 4 3 5 4 6 5 5 5 5 5 5 5 4 3 4 4 Tool/Special . | . . . . . . . . . . . . . . . . . . . . . . . . . . . . . . . . . . Unused Backups 43 | . 2 . 2 1 2 1 4 . . 2 . 1 . . 1 . . 1 4 1 . . . . 2 . 1 . . 6 2 . 10 Power 7 | . 1 . 1 . . . . . . . . . . . . . . . 3 . . . . . . . . . . . 1 . 1 Propulsion 11 | . . . . . . . . . . . . . . . . . . 1 . 1 . . . . . . . . . 4 . . 5 Utility 11 | . 1 . . . . . 2 . . 2 . 1 . . 1 . . . 1 . . . . . 1 . . . . 1 . . 1 Weapon 11 | . . . 1 . 2 1 2 . . . . . . . . . . . . . . . . . 1 . 1 . . . 1 . 2 Tool/Special 3 | . . . . 1 . . . . . . . . . . . . . . . . . . . . . . . . . 1 . . 1 Average Slot Usage (%) 90 | . 89 100 98 100 98 90 88 84 84 79 88 96 93 93 90 95 97 93 88 82 81 84 82 83 94 94 93 89 93 87 83 87 83 Engine 5 | . 11 14 11 11 17 18 14 15 15 15 8 5 2 . . . 3 11 11 1 . . . . . . . . . . . . . Reactor 8 | . . . . . . . . . . . . 6 9 13 13 13 7 5 3 15 16 12 15 15 12 10 9 8 15 15 14 16 15 Treads 8 | . 25 28 33 33 26 9 7 7 7 4 . . . . . . . . 7 11 11 13 10 10 1 . . . . . . . . Leg 13 | . . . . . . . . . . 1 8 26 26 26 26 26 29 29 12 5 5 2 10 10 28 31 28 27 25 22 21 20 19 Wheel 1 | . . . . . . 9 7 7 7 7 2 . . . . . . . . . . . . . . . . . . . . . . Device 14 | . . . 5 11 7 9 14 15 15 15 14 12 13 13 13 15 19 16 19 17 16 16 11 14 14 15 22 22 18 15 15 21 23 Storage 6 | . 14 14 11 11 9 9 7 7 7 7 7 6 6 6 6 6 5 5 5 5 5 5 5 5 5 5 4 4 4 4 4 4 4 Processor 3 | . . . . . 3 9 4 . . . . 3 . . . . . . . . . 4 5 5 5 5 4 4 9 8 7 7 4 Hackware 1 | . . . . . 8 4 . . . . . . . . . . . . . . . 4 . . 2 5 4 4 4 4 2 1 . Protection 6 | . 9 14 15 11 6 4 6 7 7 7 14 6 6 6 6 6 6 5 6 5 5 4 7 5 6 5 2 . 1 3 4 4 4 Energy Gun 6 | . 23 . 17 9 1 13 21 19 22 10 20 17 12 13 11 10 12 . . . . . . . . . . . . . . . . Energy Cannon 7 | . . . 2 11 5 . 1 3 . 6 . 1 6 5 5 7 3 15 17 17 13 1 . . 6 15 14 13 12 10 12 11 11 Ballistic Gun 2 | . 3 14 . . 11 3 . . . . . . . . . . . . . . 3 13 14 15 8 . . . . . . . . Peak Build Rating 226 | 6 10 16 23 25 38 41 60 60 60 69 83 90 92 89 89 89 111 106 123 127 135 153 148 147 150 146 164 180 202 222 213 226 218 Average Rating 110 | 4 8 8 20 20 30 39 55 58 59 55 66 86 86 89 87 85 103 101 111 124 127 145 143 145 142 145 162 169 195 197 205 216 214 On Entrance 98 | . 6 9 9 20 22 38 41 58 60 59 69 79 85 85 89 89 89 99 101 123 125 129 143 147 146 144 146 164 167 202 204 186 217 Naked Turns . | . . . . . . . . . . . . . . . . . . . . . . . . . . . . . . . . . . Heaviest Build 218 | 14 37 32 66 65 72 74 97 100 94 100 95 114 117 111 111 121 122 132 138 156 155 144 148 153 153 141 152 145 181 182 183 218 187 Greatest Support 240 | 40 40 40 60 63 63 28 28 28 28 28 84 112 112 112 112 112 140 140 160 160 160 240 160 160 160 150 156 161 176 184 184 212 212 Greatest Overweight (x) 3 | . 2 . 1 1 2 3 3 3 3 3 3 1 1 . . 1 . . 1 . . . . . . . 1 1 1 1 1 1 . Average Overweight (x) . | . . . . 1 1 2 2 3 3 2 2 . . . . . . . . . . . . . . . . . . . . . . Largest Inventory Capacity 20 | 8 15 15 20 20 20 20 20 20 20 20 20 20 20 20 20 20 20 20 20 20 20 20 20 20 20 20 20 20 20 20 20 20 20 Average Capacity 19 | 7 10 15 19 20 20 20 20 20 20 20 20 20 20 20 20 20 20 20 20 20 20 20 20 20 20 20 20 20 20 20 20 20 20 Most Carried 20 | 2 13 14 20 20 20 20 20 20 20 20 20 20 20 20 20 20 20 20 20 20 20 20 20 20 20 20 20 20 20 20 20 20 20 Average Carried 18 | . 8 13 19 19 19 19 19 19 20 17 19 18 20 20 20 19 18 18 19 19 19 18 19 19 19 20 19 19 19 19 17 19 19 Final Capacity 20 | 8 15 15 20 20 20 20 20 20 20 20 20 20 20 20 20 20 20 20 20 20 20 20 20 20 20 20 20 20 20 20 20 20 20 Final Carried 20 | 2 11 14 20 20 20 20 20 20 20 20 18 20 20 20 20 20 15 20 20 20 16 20 20 20 20 20 20 17 20 20 18 19 12 Class Distribution -------------------- 26% | Scavenger-Tank 22% | Mutant 10% | Generator-Gunner 9% | Tank 8% | Generator-Tank 7% | Hacker-Skirmisher 4% | Commander-Tank 3% | Scavenger-Skirmisher Dominant Class ---------------- Mutant | -10/Materials Mutant | -10/Mines Mutant | -9/Materials Mutant | -9/Mines Mutant | -8/Materials Mutant | -8/Garrison Tank | -7/Factory Tank | -7/Lower Caves Tank | -7/Lower Caves Tank | -7/Data Miner Scavenger-Tank | -6/Proximity Caves Scavenger-Skirmisher | -6/Factory Scavenger-Tank | -6/Lower Caves Scavenger-Tank | -6/Lower Caves Scavenger-Tank | -6/Zion Scavenger-Tank | -5/Proximity Caves Scavenger-Tank | -5/Factory Scavenger-Tank | -5/Extension Scavenger-Tank | -5/Cetus Commander-Tank | -5/Archives Scavenger-Tank | -5/Hub_04(d) Scavenger-Tank | -4/Factory Scavenger-Tank | -4/Upper Caves Scavenger-Tank | -4/Upper Caves Scavenger-Skirmisher | -4/Warlord Hacker-Skirmisher | -3/Proximity Caves Hacker-Skirmisher | -3/Research Hacker-Skirmisher | -3/Testing Generator-Gunner | -2/Research Generator-Gunner | -2/Quarantine Generator-Gunner | -2/Section 7 Generator-Tank | -1/Access Generator-Tank | -1/Command Resources | -11 -10 -10 -9 -9 -8 -8 -7 -7 -7 -7 -6 -6 -6 -6 -6 -5 -5 -5 -5 -5 -5 -4 -4 -4 -4 -3 -3 -3 -2 -2 -2 -1 -1 ----------- Run | Yrd Mat Min Mat Min Mat Gar Fac Low Low Dat Pro Fac Low Low Zio Pro Fac Ext Cet Arc Hub Fac Upp Upp War Pro Res Tes Res Qua Sec Acc Com Matter Collected 9701 | 230 238 129 612 69 649 397 379 80 55 210 154 341 82 91 40 240 469 266 80 80 474 1367 334 179 343 10 97 325 229 349 629 276 198 Remotely . | . . . . . . . . . . . . . . . . . . . . . . . . . . . . . . . . . . Salvage Created 32111 | . 543 178 1576 110 1724 670 856 367 297 427 245 502 378 40 . 893 1424 1322 40 489 1484 2672 368 309 717 . 775 1440 1815 3157 4630 1732 931 Parts 1533 | . 43 30 121 11 97 47 36 26 10 18 11 24 10 . . 37 65 56 3 22 69 115 20 14 32 . 25 65 67 134 208 77 40 Haulers Intercepted 16 | . 2 . 6 . 5 . 1 . . . . . . . . . 2 . . . . . . . . . . . . . . . . Recyclers Shooed 11 | . . . 1 . . . 1 . 1 . . 2 . . . . 2 . . . . 3 . . . . . . . . . 1 . Parts Field Recycled . | . . . . . . . . . . . . . . . . . . . . . . . . . . . . . . . . . . Retrieved Matter . | . . . . . . . . . . . . . . . . . . . . . . . . . . . . . . . . . . Parts Self-Destructed 51 | . . . . . . . . 3 3 . . . 4 . . 16 . . . . . . 11 14 . . . . . . . . . Prevented 81 | . . . . . . . . 24 9 . 10 . 5 . . 21 . . . . . . 8 2 . 2 . . . . . . . Kills | -11 -10 -10 -9 -9 -8 -8 -7 -7 -7 -7 -6 -6 -6 -6 -6 -5 -5 -5 -5 -5 -5 -4 -4 -4 -4 -3 -3 -3 -2 -2 -2 -1 -1 ------- Run | Yrd Mat Min Mat Min Mat Gar Fac Low Low Dat Pro Fac Low Low Zio Pro Fac Ext Cet Arc Hub Fac Upp Upp War Pro Res Tes Res Qua Sec Acc Com Combat Hostiles Destroyed 470 | . 17 13 36 7 26 19 20 5 5 4 4 4 5 . . 15 16 14 1 2 23 41 8 4 10 . 10 17 23 31 56 23 11 Melee 2 | . . . . . . . . . . . . . . . . . . . . . 2 . . . . . . . . . . . . Guns 128 | . 10 . 20 4 14 15 9 3 . . . 2 1 . . 2 1 . . . 3 34 6 4 . . . . . . . . . Cannons 157 | . . . 3 2 11 . 3 . . 1 . 2 3 . . 5 3 9 . 1 10 2 . . 5 . 5 14 13 18 25 16 6 AOE 75 | . 7 13 12 1 . 4 5 . 2 . 1 . . . . 5 2 . . . 5 4 . . . . . . 2 . 6 4 2 Classes Destroyed 27 | . 6 1 3 1 . 1 1 3 . . . . . . . 2 1 . . . 2 1 . . 2 . . . 1 1 1 . . Worker 20 | . . . 3 . 3 . . . . . . . . . . . 4 . . . 4 2 . . . . . 1 . 2 1 . . Builder 20 | . . . 1 . . . . . . . . 1 . . . . 2 . . . 2 4 . . . . . . . 5 1 4 . Tunneler 7 | . . 4 1 1 . . . . . . . . . . . . 1 . . . . . . . . . . . . . . . . Hauler 16 | . 2 . 6 . 5 . 1 . . . . . . . . . 2 . . . . . . . . . . . . . . . . Recycler 13 | . 1 . 1 . 3 . . . . . . 1 . . . . . 1 . . 1 2 . . . . . 1 . . 1 1 . Minesweeper 3 | . . . . . . . . 1 . . . . . 1 . . . . . . . . . 1 . . . . . . . . . Mechanic 1 | . . . . . . . . . . . . . . . . . . . . . . . . . . . . . . . 1 . . Operator 20 | . 1 . 2 . 1 . . . . . . 1 . . . . . 1 . 9 . 1 . . . . 1 . . 2 1 . . Drone 1 | . . . . . . . . . . . . . . . . 1 . . . . . . . . . . . . . . . . . Watcher 27 | . 1 . 5 . 3 . . . . . . 2 . . . . . 1 . . . . . . . . . 3 4 2 4 . 2 Swarmer 114 | . 12 9 21 6 6 8 10 . . . 1 . . . . 3 . . . . 1 9 4 . . . . 3 6 . 10 5 . Saboteur 2 | . . . . . . . . . . . . . . . . . . . . . . 1 . . 1 . . . . . . . . Grunt 153 | . 5 4 7 . 15 8 6 3 4 . 1 . 4 . . 8 6 3 . . 8 21 . 4 2 . 7 . 4 11 12 7 3 Brawler 13 | . . . . . . . . 1 1 . . . . . . . 1 2 . . 1 3 . . 2 . . . . . 1 . 1 Duelist 6 | . . . . . . . . . . . . . . . . 1 1 . . . 1 . . . . . 1 . . . 1 1 . Protector 2 | . . . . . . . . . . . . . . . . . . . . . 1 . . . . . . . 1 . . . . Sentry 53 | . . . 8 . 5 1 1 . . . 1 3 . . . . 2 7 . 2 2 2 . . . . 2 3 5 3 5 . 1 Demolisher 2 | . . . . . . . . . . . . . . . . . . . . . . . . . . . . . 2 . . . . Specialist 4 | . . . . . . . . . . . . . . . . . 2 . . . 2 . . . . . . . . . . . . Hunter 29 | . . . . . . 2 1 . . . 1 . . . . . 2 . . . 3 . 2 . . . . . . 5 10 2 1 Programmer 63 | . . . . . . . 2 . . . . 1 1 . . 1 2 . . . 3 4 2 . 1 . . 11 1 11 12 8 3 Heavy 1 | . . . . . . . . . . . . . . . . . . . . . 1 . . . . . . . . . . . . Behemoth 8 | . . . . . . . . 1 . . . . . . . 1 . 2 . . . 1 . . 2 . . . . . 1 . . Cetus Guard 1 | . . . . . . . . . . . . . . . . . . . 1 . . . . . . . . . . . . . . S7 Guard 2 | . . . . . . . . . . . . . . . . . . . . . . . . . . . . . . . 2 . . Enhanced Grunt 4 | . . . . . . . . . . 4 . . . . . . . . . . . . . . . . . . . . . . . Striker 5 | . . . . . . . . . . . . . . . . . . . . . . . . . 1 . . . 2 . . . 2 Executioner 5 | . . . . . . . . . . . . . . . . . . . . . . . . . 1 . . . 2 . 2 . . Fortress 1 | . . . . . . . . . . . . . . . . . . . . . . . . . . . . . . 1 . . . Packrat 1 | . . . . . . . . . . . . . 1 . . . . . . . . . . . . . . . . . . . . Assembled 1 | . . . . 1 . . . . . . . . . . . . . . . . . . . . . . . . . . . . . Thug 1 | . . . . . . . . . . . . . . . . 1 . . . . . . . . . . . . . . . . . Savage 1 | . . . . . . . . . . . . . . . . . . . . . 1 . . . . . . . . . . . . Best Kill Streak 16 | . 4 8 6 3 7 6 5 4 4 4 3 3 3 1 . 6 16 4 1 3 9 6 4 4 3 . 5 4 4 10 8 12 7 Combat Bots Only 9 | . 3 4 5 3 4 6 5 4 4 4 3 2 3 . . 6 9 3 1 2 7 5 4 4 3 . 5 3 4 7 6 8 7 Max Kills in Single Turn 6 | . 3 3 4 1 2 4 2 1 1 1 1 1 1 1 . 3 3 1 1 1 6 3 2 1 1 . 1 1 2 1 5 5 2 Gunslinging 1 | . . . . . 1 1 . . . . . . . . . . . . . . . 1 1 . . . . . . . . . . Exploded 5 | . 2 2 3 1 . 4 2 . 1 . 1 . . . . 2 1 . . . 4 2 . . . . . . 2 . 5 2 2 Melee 1 | . . . . . . . . . . . . . . . . . . . . . 1 . . . . . . . . . . . . Uniques/NPCs Destroyed . | . . . . . . . . . . . . . . . . . . . . . . . . . . . . . . . . . . Combat | -11 -10 -10 -9 -9 -8 -8 -7 -7 -7 -7 -6 -6 -6 -6 -6 -5 -5 -5 -5 -5 -5 -4 -4 -4 -4 -3 -3 -3 -2 -2 -2 -1 -1 -------- Run | Yrd Mat Min Mat Min Mat Gar Fac Low Low Dat Pro Fac Low Low Zio Pro Fac Ext Cet Arc Hub Fac Upp Upp War Pro Res Tes Res Qua Sec Acc Com Hostile Shots Fired 5901 | . 65 21 145 35 119 59 103 48 14 29 38 69 18 . . 75 137 60 4 5 229 210 35 54 54 . 61 105 72 274 392 2546 825 Missed 1720 | . 19 7 43 6 32 12 38 19 3 6 10 25 8 . . 27 42 30 . 4 62 73 14 4 21 . 19 22 15 90 112 617 340 Deflected 50 | . . . . . . . . . . . . . . . . . . . . . . . . . . . 5 . . 4 16 3 22 Hits 4181 | . 46 14 102 29 87 47 65 29 11 23 28 44 10 . . 48 95 30 4 1 167 137 21 50 33 . 42 83 57 184 280 1929 485 Melee 22 | . . . . . . . . 1 . . . . . . . . . 1 . . 11 . . . . . . . 2 . 4 2 1 Projectile 4159 | . 46 14 102 29 87 47 65 28 11 23 28 44 10 . . 48 95 29 4 1 156 137 21 50 33 . 42 83 55 184 276 1927 484 AOE 14 | . . . . . . . . . . . . . . . . . . . . . 1 2 . . 5 . . . 5 . . 1 . Critical Strikes 92 | . . . 3 . 3 3 1 . . . . . 3 . . 3 1 2 . . 7 8 3 3 2 . . 6 1 9 18 4 12 Part Disruptions 5 | . . . . . . . . . . . . . . . . . . . . . 1 1 . . . . . 1 . . 2 . . Damage Taken 30752 | . 494 168 1263 241 1194 530 882 460 172 1152 418 343 130 . . 617 1502 532 67 25 2577 2780 353 881 781 . 441 1027 950 2395 3617 1159 3601 Core 2296 | . 76 8 140 33 172 51 31 59 . 47 32 . 9 . . 37 99 37 . . 115 174 . 34 24 . . 62 84 187 226 262 297 Absorbed by Shields 12968 | . . . . . 168 210 59 . . . . 44 38 . . 165 498 500 69 26 1085 . . 127 251 . 447 985 896 1917 3094 977 1412 Reduced by Siege Mode 116 | . . . . . . . . . . . . . . . . . . . . . . 88 . 28 . . . . . . . . . Ignored by Resistances 49601 | . . . . . . . . . . . . . . . . . 69 . . . 26 . . . . . . . . . 207 43134 6165 Regen/Repaired (Parts) 3696 | . . . . . 103 . 46 . . . . . . . . . . . . . . 841 . . 962 . . 421 . 24 945 161 193 Core Remaining (%) 77 | 100 . 66 . 56 . 59 . . . . 75 . . . . 94 . . . . 74 . . . . 79 . 95 . . 88 . 69 Volleys Fired 1734 | . 45 12 99 14 94 50 47 27 10 15 10 25 12 2 1 38 48 47 9 22 71 90 19 12 36 6 45 146 127 187 277 56 35 Largest 3 | . 2 2 2 2 2 2 3 3 3 3 3 3 3 3 1 3 3 3 3 3 3 3 3 3 3 3 3 1 2 2 2 3 3 Hottest 360 | . 105 50 118 106 112 110 200 207 165 207 165 169 169 169 69 207 215 215 215 215 215 105 105 105 215 215 293 113 194 207 233 360 353 Shots Fired 3119 | . 90 23 193 28 170 94 127 59 22 45 29 65 34 7 1 92 137 134 27 64 204 248 33 31 102 18 99 147 128 190 282 130 66 Gun 1232 | . 86 12 161 13 105 86 116 30 18 12 24 43 18 4 . 37 93 1 . . 98 220 24 31 . . . . . . . . . Cannon 1827 | . . . 26 14 65 5 9 29 . 33 . 22 16 3 1 49 41 133 27 64 103 25 9 . 102 18 99 147 127 190 280 128 62 Launcher 60 | . 4 11 6 1 . 3 2 . 4 . 5 . . . . 6 3 . . . 3 3 . . . . . . 1 . 2 2 4 Special . | . . . . . . . . . . . . . . . . . . . . . . . . . . . . . . . . . . Kinetic 558 | . 3 12 10 . 104 56 . . . . . . . . . . . . . . 98 220 24 31 . . . . . . . . . Thermal 1182 | . 23 . 20 . . 5 9 11 . . . 19 7 . . 15 18 133 27 64 103 25 . . 102 18 86 115 35 92 115 88 52 Explosive 42 | . 4 11 6 1 . 3 2 . . . . . . . . . . . . . 3 3 . . . . . . 1 . 2 2 4 Electromagnetic 1337 | . 60 . 157 27 66 30 116 48 22 45 29 46 27 7 1 77 119 1 . . . . 9 . . . 13 32 92 98 165 40 10 Robot Hit Streak 26 | . 6 5 15 4 16 11 12 11 6 13 4 12 14 6 . 13 26 15 7 8 17 20 9 7 15 1 21 13 9 12 17 13 15 Robot Miss Streak 8 | . 8 2 8 3 5 3 4 2 3 1 2 4 2 1 . 4 4 4 2 2 8 4 4 3 3 2 4 2 3 3 4 3 2 Penetration Max 1 | . . . . . . . . . . . . . . . . . . . . . 1 1 1 . . . . . . . . . . Secondary Targets 28 | . 2 . 4 . 3 5 1 1 . . . . . . . . . . . . . 9 2 1 . . . . . . . . . Max Gunslinging Chain 1 | . 1 . 1 . 1 1 1 1 . . . . . . . . . . . . . 1 1 1 . . . . . . . . . Capacitor 734 | . . . . . . . . . . . . . . . . . . . . . . . 9 . . . . 147 125 186 267 . . Shots Hit Robots 1826 | . 42 12 116 11 122 54 77 31 12 30 16 40 21 5 . 57 90 82 18 40 114 158 19 20 62 1 56 75 64 116 172 61 32 Core Hits 940 | . 27 23 63 7 66 29 31 15 8 18 7 18 8 2 . 30 43 30 7 19 66 106 10 11 22 . 16 29 42 54 79 35 19 Critical Kills 39 | . . . . . 1 1 . . . . . . . . . . . 5 . 2 5 15 . 2 3 . 1 1 1 . 1 . 1 Critical Parts Destroyed 37 | . . . . . . . . . . . . . . . . . . . . . 7 22 3 5 . . . . . . . . . Critical Strikes 95 | . . . 2 1 1 1 3 . . . 1 2 . 1 . . . 5 . 2 12 40 4 7 3 . 1 1 3 . 2 2 1 Meltdown 17 | . . . . . . . . . . . . . . . . . . 5 . 2 2 . . . 3 . 1 1 1 . 1 . 1 Destroy 62 | . . . . . 1 1 . . . . . . . . . . . . . . 10 40 3 7 . . . . . . . . . Corrupt 16 | . . . 2 1 . . 3 . . . 1 2 . 1 . . . . . . . . 1 . . . . . 2 . 1 2 . Melee Attacks 4 | . . . . . . . . . . . . . . . . . . . . . . . . . . . . . . 4 . . . Kinetic 4 | . . . . . . . . . . . . . . . . . . . . . . . . . . . . . . 4 . . . Impact . | . . . . . . . . . . . . . . . . . . . . . . . . . . . . . . . . . . Slashing . | . . . . . . . . . . . . . . . . . . . . . . . . . . . . . . . . . . Piercing . | . . . . . . . . . . . . . . . . . . . . . . . . . . . . . . . . . . Sneak Attacks . | . . . . . . . . . . . . . . . . . . . . . . . . . . . . . . . . . . Combat Hostiles . | . . . . . . . . . . . . . . . . . . . . . . . . . . . . . . . . . . Follow-up Attacks . | . . . . . . . . . . . . . . . . . . . . . . . . . . . . . . . . . . Damage Inflicted 69363 | . 1187 926 2934 291 3073 1161 2042 614 378 603 417 1111 612 95 . 1866 3235 3058 635 1369 5105 7262 690 550 2440 34 2167 3414 2508 5376 8236 3660 2314 Guns 17387 | . 633 36 1706 90 1364 953 1378 332 141 126 266 573 164 45 . 394 1072 . . . 1515 5593 456 550 . . . . . . . . . Cannons 39495 | . . . 265 94 1210 . 141 253 . 343 . 388 374 50 . 925 792 3016 635 1369 2324 541 234 . 2418 34 2136 3336 2295 5054 7124 2775 1369 Explosions 11388 | . 554 872 944 76 489 208 523 . 237 134 151 121 74 . . 547 1350 . . . 1211 1070 . . . . . . 213 . 1058 719 837 Melee 99 | . . . . . . . . . . . . . . . . . . . . . . . . . . . . . . 99 . . . Ramming 994 | . . 18 19 31 10 . . 29 . . . 29 . . . . 21 42 . . 55 58 . . 22 . 31 78 . 223 54 166 108 Kinetic 10339 | . 20 36 33 . 1342 695 . . . . . . . . . . . . . . 1515 5593 456 550 . . . . . 99 . . . Thermal 27226 | . 432 58 292 27 327 . 326 . . 134 41 461 236 . . 554 1197 3016 635 1369 2324 693 . . 2418 34 1714 2531 43 2437 3356 1505 1066 Explosive 7518 | . 323 814 819 49 162 208 338 . . . . . . . . . . . . . 1211 918 . . . . . . 213 . 907 719 837 Electromagnetic 23286 | . 412 . 1771 184 1232 258 1378 585 378 469 376 621 376 95 . 1312 2017 . . . . . 234 . . . 422 805 2252 2617 3919 1270 303 Impact . | . . . . . . . . . . . . . . . . . . . . . . . . . . . . . . . . . . Slashing . | . . . . . . . . . . . . . . . . . . . . . . . . . . . . . . . . . . Piercing . | . . . . . . . . . . . . . . . . . . . . . . . . . . . . . . . . . . Highest Corruption 82 | . 2 7 1 1 1 1 1 1 1 7 82 1 9 9 9 5 5 5 1 4 8 3 3 3 11 . . 17 . 5 17 . . Average Corruption 3 | . 2 2 1 1 1 1 1 1 1 2 11 1 5 9 9 4 4 2 1 1 4 2 3 3 5 . . 7 . 4 9 . . Corruption Purged 27 | . . . . . . . . . . . . . . . . . . 5 . 5 . . . . . . . . . 11 6 . . Corruption Blocked . | . . . . . . . . . . . . . . . . . . . . . . . . . . . . . . . . . . Effects 356 | . 7 15 7 10 11 6 6 5 7 4 26 3 22 26 2 1 7 15 3 1 13 12 15 10 2 . . 30 . 10 80 . . Message Errors 84 | . 3 2 3 2 4 1 . 1 1 . 6 2 3 7 . . 1 5 . . 2 2 4 1 1 . . 7 . 4 22 . . Matter Fused 84 | . . 6 . 1 3 3 3 . 2 2 6 . 4 6 . 1 4 3 . . 2 4 3 5 1 . . 7 . 2 16 . . Heat Flow Errors 43 | . 2 1 2 1 . 1 1 2 . 1 5 . 4 3 . . . 1 1 . 1 2 2 1 . . . 4 . . 8 . . Energy Discharges 48 | . . 1 1 2 1 . . 1 2 1 4 . 4 4 2 . 1 1 . . 2 1 4 1 . . . 5 . 1 9 . . Parts Rejected 6 | . . 1 . . . . . . . . . . . . . . . . . 1 . . 1 . . . . 2 . . 1 . . Parts Fused 2 | . . . . . . . . . . . . . . . . . . 1 . . . . . . . . . . . . 1 . . Data Loss (minor) 39 | . 1 3 . 2 2 . 1 1 1 . 2 . 3 3 . . . 2 2 . 1 2 1 2 . . . 2 . 2 6 . . Data Loss (major) 14 | . 1 1 . 1 1 . . . 1 . 1 1 . . . . . 1 . . . 1 . . . . . 1 . . 4 . . Misfires 14 | . . . 1 . . . . . . . 1 . 3 1 . . 1 1 . . 1 . . . . . . 1 . 1 3 . . Alerts 10 | . . . . 1 . 1 1 . . . 1 . . 2 . . . . . . . . . . . . . . . . 4 . . Misdirections 2 | . . . . . . . . . . . . . . . . . . . . . . . . . . . . 1 . . 1 . . Weapon Failures 10 | . . . . . . . . . . . . . 1 . . . . . . . 4 . . . . . . . . . 5 . . Overload Shots 4 | . . . . . . . . . . . . . . . . . . 4 . . . . . . . . . . . . . . . Overflow Damage 1496 | . 44 10 28 . 19 . . . . . . 34 10 . . 23 267 37 . 50 66 96 . . 28 4 31 158 44 204 112 167 64 Projectiles 915 | . . . 1 . 5 . . . . . . 19 10 . . 23 1 22 . 50 45 87 . . 28 4 31 158 44 139 71 157 20 Explosions 492 | . 44 10 27 . 14 . . . . . . 15 . . . . 266 . . . 21 9 . . . . . . . . 41 10 35 Melee 89 | . . . . . . . . . . . . . . . . . . 15 . . . . . . . . . . . 65 . . 9 Knockbacks 9 | . . . 1 . . . . . . . . . . . . . . . . . . . . . 1 . . . . 4 2 . 1 Impact 8 | . . . 1 . . . . . . . . . . . . . . . . . . . . . 1 . . . . 4 1 . 1 Kinetic . | . . . . . . . . . . . . . . . . . . . . . . . . . . . . . . . . . . Secondary 1 | . . . . . . . . . . . . . . . . . . . . . . . . . . . . . . . 1 . . Self-Inflicted Damage 1398 | . 58 47 123 . 24 80 49 14 . 78 54 . . . . . 309 . . . 216 . . . . . . . . . 197 . 149 Shots 30 | . 3 2 4 . 1 2 2 . . 1 2 . . . . . 5 . . . 4 . . . . . . . . . 2 . 2 Rammed 31 | . . 6 3 3 3 . . 6 . . . . . . . . . . . . 6 4 . . . . . . . . . . . Targets Rammed 74 | . . 6 3 4 3 . . 6 . . . 2 . . . . 2 4 . . 7 5 . . 2 . 2 4 . 7 2 10 5 Kicked 40 | . . . . . . . . . . . . 2 . . . . 2 4 . . . . . . 2 . 2 4 . 7 2 10 5 Crushed 3 | . . . . 1 . . . . . . . . . . . . . . . . 1 1 . . . . . . . . . . . Highest Temperature 493 | . 358 183 409 62 23 171 156 231 126 197 422 239 229 246 12 424 380 267 359 344 383 251 384 372 200 55 200 372 259 200 493 9 11 Average Temperature 96 | . 96 39 117 41 7 43 52 90 45 83 171 92 84 103 9 146 109 49 113 123 113 67 102 181 109 30 133 107 82 120 103 2 5 Received Heat Transfer 4497 | . 108 12 285 . 513 183 147 138 99 . 57 80 52 . . 132 198 60 8 . 431 541 . 272 100 . 69 20 53 373 361 116 89 Effects 36 | . 1 . 3 . . . . . . . 2 1 . . . 5 2 . . 2 1 . 2 3 1 . 1 1 6 2 3 . . Shutdowns 6 | . 1 . . . . . . . . . 1 . . . . 2 . . . . . . 1 . . . . . . . 1 . . Energy Bleed 7 | . . . . . . . . . . . . 1 . . . 1 . . . . 1 . . . 1 . 1 1 . 1 . . . Interference 17 | . . . 1 . . . . . . . . . . . . 1 2 . . 2 . . . 3 . . . . 6 1 1 . . Matter Decay 3 | . . . 1 . . . . . . . 1 . . . . . . . . . . . . . . . . . . . 1 . . Short Circuit 2 | . . . . . . . . . . . . . . . . 1 . . . . . . 1 . . . . . . . . . . Damage (minor) 1 | . . . 1 . . . . . . . . . . . . . . . . . . . . . . . . . . . . . . Siege Activations 6 | . . . . . . . . . . . . . . . . . . . . . . 3 2 1 . . . . . . . . . Total Turns 144 | . . . . . . . . . . . . . . . . . . . . . . 78 37 29 . . . . . . . . . Longest Duration 41 | . . . . . . . . . . . . . . . . . . . . . . 41 31 29 . . . . . . . . . Martial Activations . | . . . . . . . . . . . . . . . . . . . . . . . . . . . . . . . . . . Shielding Activations 26 | . . . . . . . . . . . . . . . . . . . . . . . . . . . 1 . . 6 15 3 1 Total Turns 366 | . . . . . . . . . . . . . . . . . . . . . . . . . . . 34 . . 69 157 49 57 Longest Duration 57 | . . . . . . . . . . . . . . . . . . . . . . . . . . . 34 . . 18 27 22 57 Robots Disrupted 4 | . . . . . . . . . . 1 . . . . . . 1 . . . . . . . . . . . 1 . 1 . . Combat Hostiles 4 | . . . . . . . . . . 1 . . . . . . 1 . . . . . . . . . . . 1 . 1 . . Robots Corrupted 91 | . . . 2 . 1 . 3 2 3 3 3 . 1 . . 3 10 2 . . . . 2 . . . 2 3 7 12 25 3 4 Combat Hostiles 84 | . . . 1 . 1 . 3 2 3 3 3 . 1 . . 3 10 . . . . . 2 . . . 2 2 7 12 24 3 2 Parts Fried 203 | . 2 . 10 . 6 1 11 2 3 7 6 5 2 3 . 3 10 5 . . . . 3 1 . . 4 5 26 32 37 12 7 Impact Corruptions 8 | . . . . . . . . . . . . . . . . . . 2 . . . . . . . . . . . 4 . . 2 Robots Melted 24 | . . . . . . . . . . . . . . . . . . 5 1 2 3 1 . . 5 . 3 1 1 . 1 . 1 Combat Hostiles 23 | . . . . . . . . . . . . . . . . . . 5 1 1 3 1 . . 5 . 3 1 1 . 1 . 1 Parts Melted 78 | . . . 1 . 1 . 4 . . . . 2 . . . 2 4 13 1 12 8 1 . . 7 . 4 4 4 1 3 4 2 Heat Transferred 29985 | . 731 100 533 50 550 . 387 . . 150 50 644 285 . . 546 1050 4550 975 2150 3550 850 . . 2721 37 1710 1961 37 1855 2367 1221 925 Parts Sabotaged 1 | . . . . . . . . . . . . . . . . . . . . . . . . . . . . . . . . 1 . Parts Stolen . | . . . . . . . . . . . . . . . . . . . . . . . . . . . . . . . . . . Parts Stripped 18 | . . . . . . . . . . . . . . . . . . . . . . . . . . . . . . 18 . . . Power Chain Reactions 32 | . 4 . 5 1 3 . 4 . . 1 1 3 1 . . 2 5 . . . . . . . . . . . . . 2 . . Alert | -11 -10 -10 -9 -9 -8 -8 -7 -7 -7 -7 -6 -6 -6 -6 -6 -5 -5 -5 -5 -5 -5 -4 -4 -4 -4 -3 -3 -3 -2 -2 -2 -1 -1 ------- Run | Yrd Mat Min Mat Min Mat Gar Fac Low Low Dat Pro Fac Low Low Zio Pro Fac Ext Cet Arc Hub Fac Upp Upp War Pro Res Tes Res Qua Sec Acc Com Maximum Alert Level 4 | . 1 . 2 1 1 3 2 . . . . . . . . . 3 3 2 1 4 3 . . . . 1 1 1 2 4 4 3 Low Security (%) 44 | 100 91 100 63 92 64 2 . . . . . 100 . . . . . . . 58 14 . . . . . 99 96 88 21 19 . . Level 1 13 | . 8 . 22 7 35 10 . . . . . . . . . . 42 57 . 41 7 2 . . . . . 3 11 9 11 . . Level 2 22 | . . . 13 . . 20 100 . . . . . . . . . 18 36 100 . 6 65 . . . . . . . 69 46 8 14 Level 3 12 | . . . . . . 65 . . . . . . . . . . 39 6 . . 43 31 . . . . . . . . 7 21 85 Level 4 7 | . . . . . . . . . . . . . . . . . . . . . 28 . . . . . . . . . 15 70 . Level 5 . | . . . . . . . . . . . . . . . . . . . . . . . . . . . . . . . . . . High Security . | . . . . . . . . . . . . . . . . . . . . . . . . . . . . . . . . . . Max Security . | . . . . . . . . . . . . . . . . . . . . . . . . . . . . . . . . . . Peak Influence 1495 | . 246 171 464 241 320 880 633 . . . . 74 . . . . 890 753 590 374 1495 828 . . . . 194 222 320 671 1262 1411 956 Initial 739 | . . 19 53 179 . 165 462 . . . . . . . . . 450 422 412 211 . 725 . . . . 150 . 40 172 327 734 739 Average 383 | . 114 70 200 51 135 667 520 . . . . 12 . . . . 536 421 497 160 832 609 . . . . 57 47 80 450 557 1106 758 Influence Increases 20528 | . 603 394 1228 157 991 715 597 125 140 . 90 169 135 5 . 479 1389 1369 368 321 2537 1389 250 95 230 . 477 771 761 1064 1929 1111 639 Destroy 0b10 Robot/C 10420 | . 340 260 720 120 600 380 400 100 100 . 80 80 100 . . 320 320 660 160 80 940 820 160 80 200 . 200 340 440 620 1120 460 220 Destroy 0b10 Robot/NC 720 | . 25 20 95 5 90 . 5 5 . . . 25 . 5 . 10 45 30 10 45 70 40 . 5 . . 5 25 25 55 45 25 10 Destroy Leader 1852 | . 66 30 182 20 146 10 82 20 10 . 10 44 20 . . 50 84 62 . . 216 140 30 10 . . 40 66 128 64 208 80 34 Allied During Kill 1538 | . . . . . 7 . . . . . . . . . . 39 . 446 170 125 751 . . . . . . . . . . . . Successful Hack 479 | . 38 . 14 . 6 12 6 . . . . 8 . . . . 3 13 . . . 27 . . . . 18 101 . 76 82 24 51 Disable Machine 1215 | . 75 15 45 . 45 15 30 . . . . . . . . . 150 90 . 45 120 75 . . . . . 165 15 90 180 30 30 Anti-Garrison Action 200 | . . . . . . 200 . . . . . . . . . . . . . . . . . . . . . . . . . . . Destroy Structure 2169 | . 29 69 67 12 22 68 29 . . . . 12 . . . . 202 68 28 26 440 182 . . . . 64 74 93 69 249 192 174 Advance Influence 600 | . . . . . . . . . . . . . . . . . 450 . . . . . . . . . 150 . . . . . . Partial Spotted 75 | . . . . . 15 . . . . . . . . . . . . . . . . . . . . . . . . 30 30 . . Lose Combat Pursuer 1260 | . 30 . 105 . 60 30 45 . 30 . . . 15 . . 60 135 . . . . 105 60 . 30 . . . 60 60 15 300 120 Influence Decreases 19664 | . 553 305 907 617 737 89 914 688 140 . 90 163 141 5 . 479 526 1495 577 849 1056 2048 721 290 272 114 477 698 527 789 1287 1180 930 Entered New Map 4928 | . . 31 86 281 . 89 418 209 . . . . 3 . . . . 441 325 317 . 756 305 68 156 114 . . 33 135 255 490 416 Time Decay 11231 | . 513 274 641 336 508 . 486 479 140 . 90 153 138 5 . 392 386 514 222 492 446 612 416 222 116 . 394 462 484 614 632 660 404 Lost Part 669 | . 40 . 30 . 59 . 10 . . . . 10 . . . . 120 10 10 . 50 60 . . . . . 30 10 40 100 . 90 Lost Ally 597 | . . . . . 20 . . . . . . . . . . 87 20 80 20 40 260 20 . . . . . . . . . 30 20 Purge Threat 2239 | . . . 150 . 150 . . . . . . . . . . . . 450 . . 300 600 . . . . 83 206 . . 300 . . Squads Dispatched 113 | . 2 . 3 . 7 . 5 . . . . 5 . . . . 7 3 . . 18 10 . . . . 5 6 1 11 13 13 4 Investigation 17 | . 1 . . . 1 . 2 . . . . 2 . . . . . 1 . . 1 4 . . . . 1 1 . 1 2 . . Extermination 34 | . . . . . . . 2 . . . . 2 . . . . 1 . . . 4 3 . . . . . 4 . 5 5 6 2 Reinforcement 35 | . 1 . 3 . 3 . 1 . . . . 1 . . . . 6 2 . . 5 . . . . . 4 1 1 3 3 1 . Assault 21 | . . . . . . . . . . . . . . . . . . . . . 5 3 . . . . . . . 2 3 6 2 Garrison 6 | . . . . . 3 . . . . . . . . . . . . . . . 3 . . . . . . . . . . . . Intercept . | . . . . . . . . . . . . . . . . . . . . . . . . . . . . . . . . . . Searches Triggered . | . . . . . . . . . . . . . . . . . . . . . . . . . . . . . . . . . . Construction Impeded 9 | . . . 1 . 1 . . . . . . . . . . . 2 2 . . 2 . . . . . . . . . 1 . . Haulers Reinforced 7 | . . . . . . . 1 . . . . . . . . . 3 . . . . . . . . . 2 . 1 . . . . Active Scanning Responses . | . . . . . . . . . . . . . . . . . . . . . . . . . . . . . . . . . . Cargo Convoy Interrupts . | . . . . . . . . . . . . . . . . . . . . . . . . . . . . . . . . . . Stealth | -11 -10 -10 -9 -9 -8 -8 -7 -7 -7 -7 -6 -6 -6 -6 -6 -5 -5 -5 -5 -5 -5 -4 -4 -4 -4 -3 -3 -3 -2 -2 -2 -1 -1 --------- Run | Yrd Mat Min Mat Min Mat Gar Fac Low Low Dat Pro Fac Low Low Zio Pro Fac Ext Cet Arc Hub Fac Upp Upp War Pro Res Tes Res Qua Sec Acc Com Distress Signals 29 | . . . 1 . 4 . . . . . . . . . . 1 . 2 2 . 6 2 . . . . 5 . 4 . . 2 . Communications Jammed 311 | . . . . . . . . . . . . . . . . . . . . . 78 56 . . 82 1 8 . 1 8 5 65 7 Distress Signals 300 | . . . . . . . . . . . . . . . . . . . . . 76 56 . . 82 . 7 . 1 7 5 59 7 Times Spotted 827 | . 28 11 52 6 48 17 23 8 7 5 4 12 6 . . 21 32 30 10 11 59 54 11 4 71 1 25 22 32 46 73 62 36 Peak Tracking Total 16 | . 4 3 5 3 5 6 4 4 4 3 3 2 3 . . 6 6 4 5 2 10 6 4 4 16 1 5 3 5 8 5 16 12 Tactical Retreats 47 | . 1 . 4 . 3 1 2 . 1 . . . 1 . . 2 4 . . . . 4 4 . 2 . . . 2 4 1 6 5 Traps | -11 -10 -10 -9 -9 -8 -8 -7 -7 -7 -7 -6 -6 -6 -6 -6 -5 -5 -5 -5 -5 -5 -4 -4 -4 -4 -3 -3 -3 -2 -2 -2 -1 -1 ------- Run | Yrd Mat Min Mat Min Mat Gar Fac Low Low Dat Pro Fac Low Low Zio Pro Fac Ext Cet Arc Hub Fac Upp Upp War Pro Res Tes Res Qua Sec Acc Com Traps Triggered 26 | . 5 . 1 . 3 1 2 . . . . 3 . . . . . 3 . . . . . . . . . 3 . . 1 2 2 Indirectly . | . . . . . . . . . . . . . . . . . . . . . . . . . . . . . . . . . . Trap Hack Attempts . | . . . . . . . . . . . . . . . . . . . . . . . . . . . . . . . . . . Triggered . | . . . . . . . . . . . . . . . . . . . . . . . . . . . . . . . . . . Disarmed . | . . . . . . . . . . . . . . . . . . . . . . . . . . . . . . . . . . Reprogrammed 3 | . . . . . . . . . . . . . . . . . . . . . . . . . . . . 3 . . . . . Reused . | . . . . . . . . . . . . . . . . . . . . . . . . . . . . . . . . . . Traps Extracted . | . . . . . . . . . . . . . . . . . . . . . . . . . . . . . . . . . . Installed 10 | . . . . . . . . 4 . . . . . . . . . . . . . . . 6 . . . . . . . . . Triggered . | . . . . . . . . . . . . . . . . . . . . . . . . . . . . . . . . . . Machines | -11 -10 -10 -9 -9 -8 -8 -7 -7 -7 -7 -6 -6 -6 -6 -6 -5 -5 -5 -5 -5 -5 -4 -4 -4 -4 -3 -3 -3 -2 -2 -2 -1 -1 ---------- Run | Yrd Mat Min Mat Min Mat Gar Fac Low Low Dat Pro Fac Low Low Zio Pro Fac Ext Cet Arc Hub Fac Upp Upp War Pro Res Tes Res Qua Sec Acc Com Machines Disabled 92 | . 5 1 3 . 3 3 2 . . 1 . . . . . . 10 8 . 3 8 5 . . . . . 16 1 6 13 2 2 Max in Single Turn 4 | . 1 1 1 . 1 1 1 . . 1 . . . . . . 4 1 . 1 4 2 . . . . . 1 1 1 3 1 1 Garrison Access 5 | . . . . . . . . . . . . . . . . . 1 . . . . . . . . . . . 2 1 1 . . Garrison Relay 2 | . . . . . . 2 . . . . . . . . . . . . . . . . . . . . . . . . . . . Network Hub 2 | . . . . . . . . . . . . . . . . . . . . . 2 . . . . . . . . . . . . Machines Repaired . | . . . . . . . . . . . . . . . . . . . . . . . . . . . . . . . . . . Machines Dismantled . | . . . . . . . . . . . . . . . . . . . . . . . . . . . . . . . . . . Machines Sabotaged . | . . . . . . . . . . . . . . . . . . . . . . . . . . . . . . . . . . Overloaded Fab Kills . | . . . . . . . . . . . . . . . . . . . . . . . . . . . . . . . . . . Hacking | -11 -10 -10 -9 -9 -8 -8 -7 -7 -7 -7 -6 -6 -6 -6 -6 -5 -5 -5 -5 -5 -5 -4 -4 -4 -4 -3 -3 -3 -2 -2 -2 -1 -1 --------- Run | Yrd Mat Min Mat Min Mat Gar Fac Low Low Dat Pro Fac Low Low Zio Pro Fac Ext Cet Arc Hub Fac Upp Upp War Pro Res Tes Res Qua Sec Acc Com Machines Accessed 118 | . 8 . 12 2 9 1 6 1 . 4 . 8 1 . . . 2 8 . . 2 8 . . 1 1 4 9 1 10 13 4 3 Terminals 78 | . 7 . 10 1 6 1 2 . . . . 6 . . . . 1 7 . . 2 5 . . . 1 2 7 . 6 10 2 2 Fabricators 5 | . . . . . . . 2 . . . . . . . . . . . . . . 3 . . . . . . . . . . . Repair Stations 11 | . 1 . 1 . 1 . 1 . . . . 1 . . . . . . . . . . . . . . . 2 . 2 1 . 1 Recycling Units 1 | . . . . . . . . . . . . . . . . . . 1 . . . . . . . . . . . . . . . Scanalyzers 5 | . . . 1 . 1 . 1 . . . . . . . . . . . . . . . . . . . . . . 1 1 . . Garrison Access 10 | . . . . . 1 . . . . . . 1 . . . . 1 . . . . . . . . . 2 . 1 1 1 2 . Total Hacks 384 | . 19 . 30 3 31 1 11 1 . 27 . 13 1 . . . 5 24 . . 5 46 . . 1 1 11 59 1 34 38 15 7 Successful 180 | . 10 . 9 1 21 1 6 1 . 27 . 1 1 . . . 2 4 . . 3 23 . . 1 1 3 33 . 11 16 3 2 Failed 203 | . 9 . 21 2 10 . 5 . . . . 12 . . . . 3 20 . . 2 23 . . . . 8 25 1 23 22 12 5 Catastrophic 44 | . 1 . 6 . 1 . 1 . . . . 6 . . . . . 3 . . 1 3 . . . . 2 4 1 5 7 2 1 Database Lockouts 1 | . . . . . . . . . . . . . . . . . . . . . . . . . . . . 1 . . . . . Manual 126 | . 12 . 20 2 14 . 1 . . . . 8 . . . . . . 1 . 3 29 . . 1 . 3 17 . 5 9 . 1 Terminals 256 | . 16 . 27 2 22 1 3 . . . . 10 . . . . 3 21 . . 5 35 . . . 1 5 36 . 26 30 8 5 Fabricators 14 | . . . . . . . 3 . . . . . . . . . . . . . . 11 . . . . . . . . . . . Repair Stations 44 | . 3 . 1 . 5 . 2 . . . . 2 . . . . . . . . . . . . . . . 23 . 4 2 . 2 Recycling Units 3 | . . . . . . . . . . . . . . . . . . 3 . . . . . . . . . . . . . . . Scanalyzers 14 | . . . 2 . 3 . 3 . . . . . . . . . . . . . . . . . . . . . . 2 4 . . Garrison Access 22 | . . . . . 1 . . . . . . 1 . . . . 2 . . . . . . . . . 6 . 1 2 2 7 . Terminal Hacks 107 | . 3 . 4 1 7 1 . 1 . 27 . 1 1 . . . 1 3 . . 2 14 . . 1 1 2 18 . 5 11 3 . Record 13 | . . . . . . . . . . 11 . . . . . . . . . . . . . . . 1 . . . 1 . . . Part Schematic 9 | . . . . . . . . . . 9 . . . . . . . . . . . . . . . . . . . . . . . Robot Schematic 5 | . 1 . . . . . . . . 4 . . . . . . . . . . . . . . . . . . . . . . . Prototype ID Bank 14 | . 1 . 1 . 1 . . . . 3 . . . . . . . . . . . 2 . . . . . 4 . 1 1 . . Open Door 13 | . . . . 1 . . . 1 . . . . 1 . . . 1 3 . . . . . . 1 . . . . . 4 1 . Branch Access Points 3 | . . . . . . . . . . . . 1 . . . . . . . . . 1 . . . . . . . . . 1 . Machine Index 1 | . . . . . . . . . . . . . . . . . . . . . . . . . . . . . . . 1 . . Terminal Index 3 | . . . . . . . . . . . . . . . . . . . . . . . . . . . 1 1 . . . 1 . Fabricator Index 1 | . . . . . . . . . . . . . . . . . . . . . . 1 . . . . . . . . . . . Repair Station Index 1 | . . . . . . . . . . . . . . . . . . . . . . 1 . . . . . . . . . . . Alert Level 11 | . . . 1 . . . . . . . . . . . . . . . . . 1 2 . . . . . 3 . 2 2 . . Unreport Threat 12 | . . . 1 . 1 . . . . . . . . . . . . . . . 1 3 . . . . 1 3 . . 2 . . Locate Traps 5 | . . . 1 . 2 . . . . . . . . . . . . . . . . 1 . . . . . 1 . . . . . Reprogram Traps 2 | . . . . . . . . . . . . . . . . . . . . . . . . . . . . 2 . . . . . Dispatch Records 1 | . . . . . . . . . . . . . . . . . . . . . . 1 . . . . . . . . . . . Patrol Status 1 | . . . . . . . . . . . . . . . . . . . . . . 1 . . . . . . . . . . . Investigation Status 1 | . . . . . . . . . . . . . . . . . . . . . . . . . . . . 1 . . . . . Recall Investigation 1 | . . . . . . . . . . . . . . . . . . . . . . . . . . . . 1 . . . . . Recall Extermination 1 | . . . . . . . . . . . . . . . . . . . . . . 1 . . . . . . . . . . . Recall Reinforcements 2 | . . . . . 1 . . . . . . . . . . . . . . . . . . . . . . . . 1 . . . Hauler Manifests 2 | . 1 . . . 1 . . . . . . . . . . . . . . . . . . . . . . . . . . . . Registered Components 1 | . . . . . . . . . . . . . . . . . . . . . . . . . . . . 1 . . . . . Zone Layout 3 | . . . . . 1 . . . . . . . . . . . . . . . . . . . . . . 1 . . 1 . . Garrison Registry 1 | . . . . . . 1 . . . . . . . . . . . . . . . . . . . . . . . . . . . Fabricator Hacks 8 | . . . . . . . 2 . . . . . . . . . . . . . . 6 . . . . . . . . . . . Load Schematic 4 | . . . . . . . 1 . . . . . . . . . . . . . . 3 . . . . . . . . . . . Build 4 | . . . . . . . 1 . . . . . . . . . . . . . . 3 . . . . . . . . . . . Repair Station Hacks 26 | . 1 . . . 4 . 2 . . . . . . . . . . . . . . . . . . . . 13 . 2 2 . 2 Scan Component 14 | . 1 . . . 2 . 1 . . . . . . . . . . . . . . . . . . . . 7 . 1 1 . 1 Repair 12 | . . . . . 2 . 1 . . . . . . . . . . . . . . . . . . . . 6 . 1 1 . 1 Recycling Unit Hacks 1 | . . . . . . . . . . . . . . . . . . 1 . . . . . . . . . . . . . . . Retrieve Components 1 | . . . . . . . . . . . . . . . . . . 1 . . . . . . . . . . . . . . . Scanalyzer 9 | . . . 2 . 3 . 2 . . . . . . . . . . . . . . . . . . . . . . 2 . . . Insert Component 5 | . . . 1 . 1 . 1 . . . . . . . . . . . . . . . . . . . . . . 2 . . . Analyze 4 | . . . 1 . 2 . 1 . . . . . . . . . . . . . . . . . . . . . . . . . . Garrison Access Hacks 4 | . . . . . 1 . . . . . . . . . . . 1 . . . . . . . . . . . . 1 1 . . Unlock Access 1 | . . . . . 1 . . . . . . . . . . . . . . . . . . . . . . . . . . . . Seal Access 3 | . . . . . . . . . . . . . . . . . 1 . . . . . . . . . . . . 1 1 . . Unauthorized Hacks 25 | . 6 . 3 . 6 . . . . . . . . . . . . . . . 1 3 . . . . 1 2 . 1 2 . . Terminals 24 | . 6 . 3 . 6 . . . . . . . . . . . . . . . 1 2 . . . . 1 2 . 1 2 . . Assimilate 2 | . 1 . . . . . . . . . . . . . . . . . . . . 1 . . . . . . . . . . . Botnet 8 | . . . 1 . 2 . . . . . . . . . . . . . . . . . . . . . 1 1 . 1 2 . . Operators 2 | . . . . . . . . . . . . . . . . . . . . . . 1 . . . . . 1 . . . . . Skim 11 | . 5 . 2 . 4 . . . . . . . . . . . . . . . . . . . . . . . . . . . . Sabotage 1 | . . . . . . . . . . . . . . . . . . . . . 1 . . . . . . . . . . . . Fabricators 1 | . . . . . . . . . . . . . . . . . . . . . . 1 . . . . . . . . . . . Prioritize 1 | . . . . . . . . . . . . . . . . . . . . . . 1 . . . . . . . . . . . Repair Stations . | . . . . . . . . . . . . . . . . . . . . . . . . . . . . . . . . . . Recycling Units . | . . . . . . . . . . . . . . . . . . . . . . . . . . . . . . . . . . Scanalyzers . | . . . . . . . . . . . . . . . . . . . . . . . . . . . . . . . . . . Garrison Access . | . . . . . . . . . . . . . . . . . . . . . . . . . . . . . . . . . . Data Cores Recovered 1 | . . . . . 1 . . . . . . . . . . . . . . . . . . . . . . . . . . . . Used . | . . . . . . . . . . . . . . . . . . . . . . . . . . . . . . . . . . Hacking Detections 98 | . 7 . 11 1 8 1 6 . . . . 8 . . . . 1 6 1 . 2 8 . . . . 4 9 1 9 8 4 3 Full Trace Events 10 | . . . . . . . 1 . . . . 1 . . . . . 1 . . . 4 . . . . . . . 1 2 . . Feedback Events . | . . . . . . . . . . . . . . . . . . . . . . . . . . . . . . . . . . Feedback Blocked . | . . . . . . . . . . . . . . . . . . . . . . . . . . . . . . . . . . Robot Schematics Acquired 7 | . 1 . . . . . . . . 4 . . . . 2 . . . . . . . . . . . . . . . . . . Robots Built 2 | . . . . . . . . . . . . . . . . . . . . . . 2 . . . . . . . . . . . Authchips . | . . . . . . . . . . . . . . . . . . . . . . . . . . . . . . . . . . Time 120 | . . . . . . . . . . . . . . . . . . . . . . 120 . . . . . . . . . . . Total Robot Build Rating 2 | . . . . . . . . . . . . . . . . . . . . . . 2 . . . . . . . . . . . Part Schematics Acquired 28 | . . . 1 . 1 . 1 . . 9 . . . . 14 . . . . . . . . . . . . . . 2 . . . Parts Built 2 | . . . . . . . 2 . . . . . . . . . . . . . . . . . . . . . . . . . . Authchips . | . . . . . . . . . . . . . . . . . . . . . . . . . . . . . . . . . . Time 84 | . . . . . . . 84 . . . . . . . . . . . . . . . . . . . . . . . . . . Total Part Build Rating 8 | . . . . . . . 8 . . . . . . . . . . . . . . . . . . . . . . . . . . Parts Repaired 11 | . . . . . 2 . 1 . . . . . . . . . . . . . . . . . . . . 5 . 1 1 . 1 Time 565 | . . . . . 187 . 51 . . . . . . . . . . . . . . . . . . . . 235 . 22 34 . 36 Parts Recycled . | . . . . . . . . . . . . . . . . . . . . . . . . . . . . . . . . . . Recycled Matter . | . . . . . . . . . . . . . . . . . . . . . . . . . . . . . . . . . . Retrieved Matter . | . . . . . . . . . . . . . . . . . . . . . . . . . . . . . . . . . . Retrieved Components 9 | . . . . . . . . . . . . . . . . . . 9 . . . . . . . . . . . . . . . Parts Scanalyzed 3 | . . . 1 . 1 . 1 . . . . . . . . . . . . . . . . . . . . . . . . . . Part Schematics Acquired 3 | . . . 1 . 1 . 1 . . . . . . . . . . . . . . . . . . . . . . . . . . Parts Damaged 1 | . . . 1 . . . . . . . . . . . . . . . . . . . . . . . . . . . . . . Bothacking | -11 -10 -10 -9 -9 -8 -8 -7 -7 -7 -7 -6 -6 -6 -6 -6 -5 -5 -5 -5 -5 -5 -4 -4 -4 -4 -3 -3 -3 -2 -2 -2 -1 -1 ------------ Run | Yrd Mat Min Mat Min Mat Gar Fac Low Low Dat Pro Fac Low Low Zio Pro Fac Ext Cet Arc Hub Fac Upp Upp War Pro Res Tes Res Qua Sec Acc Com Used RIF Installer . | . . . . . . . . . . . . . . . . . . . . . . . . . . . . . . . . . . Robots Hacked . | . . . . . . . . . . . . . . . . . . . . . . . . . . . . . . . . . . Non-combat . | . . . . . . . . . . . . . . . . . . . . . . . . . . . . . . . . . . Combat . | . . . . . . . . . . . . . . . . . . . . . . . . . . . . . . . . . . Robot Hacks Applied . | . . . . . . . . . . . . . . . . . . . . . . . . . . . . . . . . . . Relay Couplers Released 13 | . . . . . . 10 . . . . . . . . . . . . . . . . . . . . . . 3 . . . . Machine Destruction 13 | . . . . . . 10 . . . . . . . . . . . . . . . . . . . . . . 3 . . . . Fabnet Peak Effective % . | . . . . . . . . . . . . . . . . . . . . . . . . . . . . . . . . . . Robots Rewired 11 | . . . . . . . . . . . . . . . . . 1 10 . . . . . . . . . . . . . . . Allies Hacked . | . . . . . . . . . . . . . . . . . . . . . . . . . . . . . . . . . . Hacks Repelled . | . . . . . . . . . . . . . . . . . . . . . . . . . . . . . . . . . . Allies | -11 -10 -10 -9 -9 -8 -8 -7 -7 -7 -7 -6 -6 -6 -6 -6 -5 -5 -5 -5 -5 -5 -4 -4 -4 -4 -3 -3 -3 -2 -2 -2 -1 -1 -------- Run | Yrd Mat Min Mat Min Mat Gar Fac Low Low Dat Pro Fac Low Low Zio Pro Fac Ext Cet Arc Hub Fac Upp Upp War Pro Res Tes Res Qua Sec Acc Com Total Allies 37 | . . . . 1 . . . . . . . . . . 6 . 1 21 5 . . 3 . . . . . . . . . . . Largest Group 18 | . . . . 1 1 . . . . . . . . . 6 6 1 17 18 18 15 1 . . . . . . . . . . . Highest-Rated Group 996 | . . . . 31 31 . . . . . . . . . 163 163 29 657 996 996 781 14 . . . . . . . . . . . Highest-Rated Ally 159 | . . . . 31 31 . . . . . . . . . 31 31 29 159 159 159 96 14 . . . . . . . . . . . Initial Warlord ECA Mod 69 | . . . . . . . 5 5 5 5 4 4 4 4 4 3 3 3 3 3 3 2 2 2 2 1 1 1 . . . . . Total Orders 42 | . . . . . . . . . . . . . . . . . 5 7 . . 7 8 . . 5 . . . . . . 7 3 STAY 9 | . . . . . . . . . . . . . . . . . . . . . 5 4 . . . . . . . . . . . AID 2 | . . . . . . . . . . . . . . . . . . . . . . 2 . . . . . . . . . . . EXPLORE 14 | . . . . . . . . . . . . . . . . . 1 1 . . . . . . 4 . . . . . . 5 3 RETURN 17 | . . . . . . . . . . . . . . . . . 4 6 . . 2 2 . . 1 . . . . . . 2 . Ally Attacks 422 | . . . . . 36 . . . . . . . . . . 24 2 147 47 15 151 . . . . . . . . . . . . Total Damage 9787 | . . . . . 545 . . . . . . . . . . 262 45 3011 854 345 4725 . . . . . . . . . . . . Kills 74 | . . . . . 7 . . . . . . . . . . 3 . 20 10 2 32 . . . . . . . . . . . . Allies Corrupted . | . . . . . . . . . . . . . . . . . . . . . . . . . . . . . . . . . . Allies Melted 5 | . . . . . . . . . . . . . . . . . . . . . . . . . 1 . . . 4 . . . . Intel | -11 -10 -10 -9 -9 -8 -8 -7 -7 -7 -7 -6 -6 -6 -6 -6 -5 -5 -5 -5 -5 -5 -4 -4 -4 -4 -3 -3 -3 -2 -2 -2 -1 -1 ------- Run | Yrd Mat Min Mat Min Mat Gar Fac Low Low Dat Pro Fac Low Low Zio Pro Fac Ext Cet Arc Hub Fac Upp Upp War Pro Res Tes Res Qua Sec Acc Com Active Infowar (turns) 26465 | . . 1 . . . . 1114 1807 1043 442 651 840 834 719 916 26 . . . . 588 1998 855 474 1185 527 1381 1783 1656 1919 2254 2492 960 Optics 8219 | . . . . . . . . . . . . . . . . . . . . . . . . . . . . . 594 1919 2254 2492 960 Sensors 16124 | . . 1 . . . . 1114 1807 1043 442 651 840 834 719 916 26 . . . . . 691 807 474 952 503 946 1729 1062 1 566 . . Terrain 1588 | . . . . . . . . . . . . . . . . . . . . . . . . . . . . . . . . 1586 2 Machine Analysis 445 | . . . . . . . . . . . . 445 . . . . . . . . . . . . . . . . . . . . . Jamming 11518 | . . . . . . . . . . . . . . . . . . . . . 588 1998 331 . 1054 527 1381 149 1090 568 388 2492 952 Robot Analysis Total . | . . . . . . . . . . . . . . . . . . . . . . . . . . . . . . . . . . Derelict Logs Recovered 10 | . . 1 . 1 . . . . 1 . . . 1 1 1 3 . . . . . . 1 . . . . . . . . . . Drone Launches 37 | . . . . . . . . . . . . . . . . . 4 7 . . 2 2 . . 6 . . . . . . 10 6 Drone Recoveries 32 | . . . . . . . . . . . . . . . . . 4 7 . . 2 2 . . 6 . . . . . . 7 4 Exploration | -11 -10 -10 -9 -9 -8 -8 -7 -7 -7 -7 -6 -6 -6 -6 -6 -5 -5 -5 -5 -5 -5 -4 -4 -4 -4 -3 -3 -3 -2 -2 -2 -1 -1 ------------- Run | Yrd Mat Min Mat Min Mat Gar Fac Low Low Dat Pro Fac Low Low Zio Pro Fac Ext Cet Arc Hub Fac Upp Upp War Pro Res Tes Res Qua Sec Acc Com Turns Passed 43956 | 94 1684 661 2475 1452 2414 1211 1261 1807 1043 563 651 931 883 719 916 1882 907 1405 466 1530 1245 2001 1017 474 1185 527 1381 1787 1656 2022 2254 2492 960 Spaces Moved 21607 | 56 744 376 1031 501 851 384 692 984 685 282 282 619 675 508 723 1272 466 756 163 236 579 919 569 261 666 363 563 1119 972 955 1231 518 606 Core 6 | 5 1 . . . . . . . . . . . . . . . . . . . . . . . . . . . . . . . . Treads 6306 | 51 743 376 1031 501 842 1 . . . . . . . . . . . . 133 236 579 919 569 261 64 . . . . . . . . Legs 12080 | . . . . . . . . . . . 123 619 675 508 723 1272 466 756 30 . . . . . 602 363 563 1119 972 955 1229 506 599 Wheels 3194 | . . . . . 9 383 692 984 685 282 159 . . . . . . . . . . . . . . . . . . . . . . Hover . | . . . . . . . . . . . . . . . . . . . . . . . . . . . . . . . . . . Flight . | . . . . . . . . . . . . . . . . . . . . . . . . . . . . . . . . . . Fastest Speed 50 | 50 150 160 160 240 130 130 130 145 145 130 130 120 120 120 120 120 120 120 120 160 160 160 160 160 130 130 120 108 101 110 120 122 125 Average Speed 146 | 150 171 160 197 240 238 130 136 145 145 140 205 122 121 120 120 132 120 120 155 160 160 160 160 160 132 130 129 114 140 125 123 135 127 Slowest Speed 400 | 160 240 160 240 240 240 400 145 145 145 145 330 190 190 120 120 190 120 120 240 160 160 160 160 160 160 130 200 186 176 178 192 196 128 Overloaded Moves . | . . . . . . . . . . . . . . . . . . . . . . . . . . . . . . . . . . Propulsion Burnouts . | . . . . . . . . . . . . . . . . . . . . . . . . . . . . . . . . . . Robots Hopped . | . . . . . . . . . . . . . . . . . . . . . . . . . . . . . . . . . . Potential Cave-ins 8 | . . . . . . . . . . . . . . . . . . 1 . . . . . . 3 . . 2 . . 2 . . Cave-ins Triggered 1 | . . . . . . . . . . . . . . . . . . . . . . . . . . . . . . . 1 . . Spacefolds 8 | . . . . . . . . . . . . . . . . . . . . . . . . . . . . . . . 1 5 2 Exploration Rate (%) 63 | 4 96 90 94 97 62 56 22 92 86 81 48 22 81 71 78 96 18 83 57 88 59 21 85 46 72 63 23 88 44 95 78 27 25 Regions Visited 33 Branch Regions 22 Pre-discovered Areas 8 | . 2 1 . . . . . 1 1 1 . . . . 1 . . . . . . . 1 . . . . . . . . . . Known Exits Taken 16 | . . . 1 1 1 . . . . . 1 1 . . . . . 1 . . 1 1 1 1 1 1 1 1 . . 1 1 . Unknown Exits Taken 16 | 1 1 1 . . . . 1 1 1 1 . . 1 1 1 1 1 . 1 1 . . . . . . . . 1 1 . . . Scrap Searched 27 | . . 1 . 3 . . . 3 5 . . . 4 3 2 1 . . . . . . 3 . . 2 . . . . . . . Spaces Dug 176 | . . . . . . 23 1 3 . . . 1 . . . 1 1 3 . . 2 8 3 . 3 11 15 21 13 6 9 19 33 Terrain Destroyed 1255 | . 29 81 68 14 18 32 31 3 . . 6 12 12 . . 12 114 24 4 12 268 91 12 20 6 16 34 46 40 22 100 68 60 Melee . | . . . . . . . . . . . . . . . . . . . . . . . . . . . . . . . . . . Projectile 487 | . . . . . . . 3 3 . . . 3 1 . . 3 8 24 4 12 66 63 12 20 6 16 34 46 34 22 33 49 25 AOE 768 | . 29 81 68 14 18 32 28 . . . 6 9 11 . . 9 106 . . . 202 28 . . . . . . 6 . 67 19 35 Terrain Rammed . | . . . . . . . . . . . . . . . . . . . . . . . . . . . . . . . . . . Walls Destroyed . | . . . . . . . . . . . . . . . . . . . . . . . . . . . . . . . . . . Machines Disabled . | . . . . . . . . . . . . . . . . . . . . . . . . . . . . . . . . . . Actions | -11 -10 -10 -9 -9 -8 -8 -7 -7 -7 -7 -6 -6 -6 -6 -6 -5 -5 -5 -5 -5 -5 -4 -4 -4 -4 -3 -3 -3 -2 -2 -2 -1 -1 --------- Run | Yrd Mat Min Mat Min Mat Gar Fac Low Low Dat Pro Fac Low Low Zio Pro Fac Ext Cet Arc Hub Fac Upp Upp War Pro Res Tes Res Qua Sec Acc Com Total 32006 | 63 1061 408 1280 718 1106 1025 907 1312 715 413 323 736 711 611 771 1378 706 1147 360 1343 734 1254 655 292 889 404 1139 1620 1262 1778 1946 2201 738 Wait 7287 | . 233 4 70 188 104 549 101 281 18 66 10 49 16 99 40 32 118 213 162 1061 47 169 43 7 119 35 500 303 121 533 366 1567 63 Move 21562 | 55 743 375 1030 500 851 383 691 983 684 281 281 618 674 507 722 1271 465 755 162 235 578 918 568 260 665 362 562 1118 971 954 1230 510 600 Hop . | . . . . . . . . . . . . . . . . . . . . . . . . . . . . . . . . . . Pick Up 248 | 2 16 2 15 3 13 11 15 2 . 14 . 7 . . 1 4 11 10 6 6 5 17 5 1 11 . 7 6 11 16 16 9 6 Fast Attach 164 | 6 9 1 7 . 6 2 5 . . 4 6 5 1 . 3 5 9 3 5 5 1 8 1 . 12 . 1 20 4 18 10 5 2 Attach 135 | . 5 . 6 . 7 1 5 . . 10 2 4 . . . . 12 3 2 1 9 11 1 3 5 . 3 5 5 8 14 5 8 Detach 51 | . 1 . 4 . . 3 2 . . 1 . 2 . . . . 3 4 . 2 1 6 . 1 3 . 1 1 1 6 3 4 2 Swap 342 | . 5 7 24 5 10 13 20 7 3 8 13 11 7 3 . 22 20 19 1 2 11 19 11 1 14 1 8 2 12 13 20 21 9 Drop 293 | . 4 1 20 4 18 13 21 2 . 10 1 5 1 . 4 5 13 8 13 9 4 11 7 1 22 . 10 15 10 32 9 12 8 Fire 1734 | . 45 12 99 14 94 50 47 27 10 15 10 25 12 2 1 38 48 47 9 22 71 90 19 12 36 6 45 146 127 187 277 56 35 Melee 4 | . . . . . . . . . . . . . . . . . . . . . . . . . . . . . . 4 . . . Ram 6 | . . . . . . . . 6 . . . . . . . . . . . . . . . . . . . . . . . . . Kick 39 | . . . . . . . . . . . . 2 . . . . 2 4 . . . . . . 2 . 2 4 . 7 1 10 5 Crush 28 | . . 6 3 4 3 . . . . . . . . . . . . . . . 7 5 . . . . . . . . . . . Escape Stasis 10 | . . . . . . . . . . . . 8 . . . . . . . . . . . . . . . . . . . 2 . Rewire 93 | . . . 2 . . . . . . 4 . . . . . 1 5 81 . . . . . . . . . . . . . . . Trap 10 | . . . . . . . . 4 . . . . . . . . . . . . . . . 6 . . . . . . . . . Miscellaneous . | . . . . . . . . . . . . . . . . . . . . . . . . . . . . . . . . . . Route ------- -11/Scrapyard -10/Materials (discovered 6 exits: *Mat x3 / [*Min x2] / Sub) -10/Mines (discovered 4 exits: *Mat x2 / Exi / Sub) -9/Materials (discovered 4 exits: *Mat x3 / *Min) -9/Mines (discovered 2 exits: *Mat x2) -8/Materials (discovered 2 exits: *Fac / Gar) -8/Garrison (discovered 3 exits: *Fac x3) -7/Factory (discovered 4 exits: *Fac / Sto / *Low x2) -7/Lower Caves -7/Lower Caves (discovered 2 exits: *Fac / *Dat) -7/Data Miner -6/Proximity Caves -6/Factory (discovered 5 exits: *Fac x3 / *Low x2) -6/Lower Caves -6/Lower Caves (discovered 2 exits: *Fac / [*Zio]) -6/Zion -5/Proximity Caves -5/Factory (discovered 5 exits: *Fac x4 / *Ext) -5/Extension (discovered 2 exits: *Fac / *Cet) -5/Cetus (discovered 2 exits: *Fac / [*Arc]) -5/Archives (discovered 3 exits: *Fac / *Hub x2) -5/Hub_04(d) (discovered 3 exits: *Fac x3) -4/Factory (discovered 4 exits: *Res / *Upp x2 / Arm) -4/Upper Caves -4/Upper Caves -4/Warlord -3/Proximity Caves -3/Research -3/Testing -2/Research (discovered 3 exits: *Acc x2 / *Qua) -2/Quarantine (discovered 3 exits: *Acc / *Sec / [*Frg]) -2/Section 7 -1/Access -1/Command To Epsilon Eridani History --------- Turn | Location | Event 20 | -11/Scrapyard | Discovered new exit (range 16) 95 | -11/Scrapyard | Entered Materials 303 | -10/Materials | Build established: Mutant 326 | -10/Materials | Discovered new exit (range 13) 673 | -10/Materials | Discovered new exit (range 15) 885 | -10/Materials | Discovered new exit (range 7) 1171 | -10/Materials | Discovered new exit (range 15) 1171 | -10/Materials | Discovered new exit (range 16) 1330 | -10/Materials | Lost 3 parts (1n1u1w) 1397 | -10/Materials | Learned 4 Recycling zone layouts 1464 | -10/Materials | Learned 2 Mines zone layouts 1523 | -10/Materials | Identified exit to Subcaves 1523 | -10/Materials | Learned location of 1 exit from Materials 1574 | -10/Materials | Learned 4 Recycling zone layouts 1613 | -10/Materials | Learned Storage emergency access door positions 1656 | -10/Materials | Learned location of Subcaves (-10) 1682 | -10/Materials | Loaded intel: 23 non-interactive machine locations 1718 | -10/Materials | Learned location of Storage (-7) 1779 | -10/Materials | Entered Mines 1780 | -10/Mines | Identified exit to Exiles 1867 | -10/Mines | Found a damaged Exp. Sensor Array with a note attached 1870 | -10/Mines | Found Prototype Device 1871 | -10/Mines | Identified Exp. Sensor Array 1967 | -10/Mines | Discovered new exit (range 11) 1970 | -10/Mines | Found DCF Scrap (14 items) 2181 | -10/Mines | Excavation squad dispatched 2181 | -10/Mines | A large section of the Mines collapsed 2241 | -10/Mines | Discovered new exit (range 10) 2440 | -10/Mines | Entered Materials 2440 | -9/Materials | Evolved 2 slots: Propulsion x1, Utility x1 2441 | -9/Materials | Identified exit to Mines 2442 | -9/Materials | Identified exit to Materials 3128 | -9/Materials | Discovered exit to Materials (range 16) 4168 | -9/Materials | Discovered exit to Materials (range 16) 4915 | -9/Materials | Entered Mines 4933 | -9/Mines | Met a Derelict bent on vengeance 5258 | -9/Mines | Discovered exit to Materials (range 6) 5359 | -9/Mines | Discovered exit to Materials (range 5) 5375 | -9/Mines | Found the Drone Emporium 5391 | -9/Mines | Found Prototype Device 5392 | -9/Mines | Identified Thief Drone Bay 5420 | -9/Mines | Assembled infested the area 5769 | -9/Mines | Escorted by a lone wolf Derelict 6367 | -9/Mines | Entered Materials 6367 | -8/Materials | Accompanied by 1 ally 6367 | -8/Materials | Evolved 2 slots: Power x1, Utility x1 7892 | -8/Materials | Discovered new exit (range 5) 8310 | -8/Materials | Repaired Broken Exp. Sensor Array? 8400 | -8/Materials | Repaired Cld. Ion Engine 8781 | -8/Materials | Identified exit to Garrison 8781 | -8/Materials | Entered Garrison 8799 | -8/Garrison | Triggered checkpoint 8831 | -8/Garrison | Discovered new exit (range 68) 8831 | -8/Garrison | Discovered new exit (range 83) 8831 | -8/Garrison | Discovered new exit (range 71) 8943 | -8/Garrison | Triggered checkpoint 9003 | -8/Garrison | Triggered checkpoint 9126 | -8/Garrison | Garrison Relay disabled 9133 | -8/Garrison | Garrison Relay disabled 9992 | -8/Garrison | Entered Factory 9992 | -7/Factory | Evolved 2 slots: Utility x1, Weapon x1 9993 | -7/Factory | Identified exit to Storage 10062 | -7/Factory | Repaired Cld. Ion Engine 10446 | -7/Factory | Build established: Gunner 10576 | -7/Factory | Discovered new exit (range 11) 10649 | -7/Factory | Identified exit to Factory 10889 | -7/Factory | Fabricated Lightning Gun (x2) 11049 | -7/Factory | Build established: Tank 11126 | -7/Factory | Allied Derelicts emerged from ambush trap array 11200 | -7/Factory | Discovered new exit (range 15) 11229 | -7/Factory | Discovered new exit (range 16) 11253 | -7/Factory | Entered Lower Caves 11284 | -7/Lower Caves | Met a Warlord Commander 11285 | -7/Lower Caves | Learned location of Warlord (-4) 11286 | -7/Lower Caves | Warlord Commander delivered Encrypted Comm Array 12436 | -7/Lower Caves | Spotted B-75 Beast 12463 | -7/Lower Caves | Destroyed B-75 Beast 12656 | -7/Lower Caves | Discovered new exit (range 11) 13060 | -7/Lower Caves | Entered another Lower Caves area 13081 | -7/Lower Caves | Discovered exit to Factory (range 9) 13314 | -7/Lower Caves | Learned location of Extension (-5) 13461 | -7/Lower Caves | Encountered a Warlord checkpoint 13986 | -7/Lower Caves | Discovered new exit (range 9) 14103 | -7/Lower Caves | Entered Data Miner 14103 | -7/Data Miner | Discovered new exit (range 6) 14130 | -7/Data Miner | Met Data Miner 14154 | -7/Data Miner | Learned location of Section 7 (-2) 14154 | -7/Data Miner | Acquired the access code to Warlord's prototype stash 14177 | -7/Data Miner | Received God Mode back door access code from Data Miner 14285 | -7/Data Miner | Data Conduit disabled 14437 | -7/Data Miner | Lost 6 parts (1p1n1u3w) 14666 | -7/Data Miner | Entered Proximity Caves 14816 | -6/Proximity Caves | System corruption reached 10% 14924 | -6/Proximity Caves | Attracted the attention of an 0b10 checkpoint 15105 | -6/Proximity Caves | Build established: Scavenger-Tank 15265 | -6/Proximity Caves | Discovered exit to Factory (range 10) 15299 | -6/Proximity Caves | System corruption reached 30% 15317 | -6/Proximity Caves | Entered Factory 15317 | -6/Factory | Evolved 2 slots: Power x1, Propulsion x1 15449 | -6/Factory | Identified exit to Lower Caves 15670 | -6/Factory | Build established: Scavenger-Skirmisher 15789 | -6/Factory | Found Prototype Launcher 15789 | -6/Factory | Identified Scatter Rocket Array 15843 | -6/Factory | Discovered new exit (range 12) 15887 | -6/Factory | Discovered new exit (range 8) 16076 | -6/Factory | Discovered new exit (range 15) 16220 | -6/Factory | Build established: Scavenger-Tank 16248 | -6/Factory | Entered Lower Caves 16802 | -6/Lower Caves | Discovered new exit (range 7) 16810 | -6/Lower Caves | Learned Factory interactive machine intel 16987 | -6/Lower Caves | Encountered a Warlord checkpoint 17131 | -6/Lower Caves | Entered another Lower Caves area 17135 | -6/Lower Caves | Discovered new exit (range 10) 17600 | -6/Lower Caves | Learned Factory stockpile data 17648 | -6/Lower Caves | Discovered new exit (range 6) 17850 | -6/Lower Caves | Entered Zion 17900 | -6/Zion | System corruption cleaned by Quarantine Array 18002 | -6/Zion | Given the Hacking Drone Bay 18030 | -6/Zion | Gained Derelict followers 18688 | -6/Zion | Found Prototype Device 18718 | -6/Zion | Discovered new exit (range 12) 18766 | -6/Zion | Entered Proximity Caves 18766 | -5/Proximity Caves | Accompanied by 6 allies 18769 | -5/Proximity Caves | Spotter reported a threat 18769 | -5/Proximity Caves | Spotter reported a threat 18840 | -5/Proximity Caves | Lost 5 allies 18875 | -5/Proximity Caves | Identified Hacking Drone Bay 19028 | -5/Proximity Caves | Spotter reported a threat 19178 | -5/Proximity Caves | Learned Factory stockpile data 19582 | -5/Proximity Caves | Spotted B-75 Beast 19701 | -5/Proximity Caves | Learned Factory stockpile data 19916 | -5/Proximity Caves | Destroyed B-75 Beast 20399 | -5/Proximity Caves | Discovered new exit (range 14) 20648 | -5/Proximity Caves | Entered Factory 20648 | -5/Factory | Evolved 2 slots: Propulsion x1, Utility x1 20650 | -5/Factory | Loaded intel: 55 interactive machine locations 20923 | -5/Factory | Spotted B-75 Beast 20931 | -5/Factory | Identified exit to Factory 21230 | -5/Factory | Lost 3 parts (1u2w) 21235 | -5/Factory | Destroyed 9 combat bots 21465 | -5/Factory | Lost 7 parts (1p2n2u2w) 21490 | -5/Factory | Discovered new exit (range 6) 21555 | -5/Factory | Entered Extension 21610 | -5/Extension | Rescued a captive Derelict 21645 | -5/Extension | Identified exit to Cetus 21935 | -5/Extension | Rescued A7 22247 | -5/Extension | Spotted B-75 Beast 22256 | -5/Extension | Destroyed B-75 Beast 22278 | -5/Extension | Spotted B-75 Beast 22302 | -5/Extension | Destroyed B-75 Beast 22344 | -5/Extension | Rescued a captive Derelict 22345 | -5/Extension | Rescued a captive Derelict 22388 | -5/Extension | Rescued a captive Derelict 22392 | -5/Extension | Rescued a captive Derelict 22407 | -5/Extension | Rescued a captive Derelict 22409 | -5/Extension | Rescued a captive Derelict 22587 | -5/Extension | Rescued a captive Derelict 22654 | -5/Extension | Rescued a captive Derelict 22655 | -5/Extension | Rescued a captive Derelict 22893 | -5/Extension | Discovered exit to Factory (range 10) 22960 | -5/Extension | Entered Cetus 22960 | -5/Cetus | Accompanied by 15 allies (A7) 22965 | -5/Cetus | Acquired a Cetus Manufacturing Module code from A7 22992 | -5/Cetus | Spotted Cetus Guard 22992 | -5/Cetus | Spotted Cetus Guard 22994 | -5/Cetus | Allies destroyed Cetus Guard 22994 | -5/Cetus | Spotted Cetus Guard 22997 | -5/Cetus | Spotted Cetus Guard 23005 | -5/Cetus | Allies destroyed Cetus Guard 23008 | -5/Cetus | Allies destroyed Cetus Guard 23008 | -5/Cetus | Allies destroyed Cetus Guard 23188 | -5/Cetus | Started Cetus Manufacturing Module 23208 | -5/Cetus | Discovered new exit (range 16) 23213 | -5/Cetus | Manufactured an Enhanced Grunt 23238 | -5/Cetus | Manufactured an Enhanced Grunt 23257 | -5/Cetus | Spotted Cetus Guard 23257 | -5/Cetus | Spotted Cetus Guard 23260 | -5/Cetus | Allies destroyed Cetus Guard 23261 | -5/Cetus | Spotted Cetus Guard 23263 | -5/Cetus | Manufactured an Enhanced Grunt 23263 | -5/Cetus | Spotted Cetus Guard 23264 | -5/Cetus | Allies destroyed Cetus Guard 23264 | -5/Cetus | Allies destroyed Cetus Guard 23273 | -5/Cetus | Destroyed Cetus Guard 23285 | -5/Cetus | Discovered exit to Factory (range 16) 23288 | -5/Cetus | Manufactured an Enhanced Grunt 23294 | -5/Cetus | Met Revision 17 23313 | -5/Cetus | Manufactured an Enhanced Grunt 23426 | -5/Cetus | Entered Archives 23426 | -5/Archives | Accompanied by 18 allies (A7) 23548 | -5/Archives | Build established: Commander-Tank 23554 | -5/Archives | Discovered exit to Factory (range 12) 23833 | -5/Archives | Discovered new exit (range 15) 23924 | -5/Archives | Discovered new exit (range 14) 24956 | -5/Archives | Entered Hub_04(d) 24956 | -5/Hub_04(d) | Accompanied by 15 allies 25291 | -5/Hub_04(d) | Lost 4 allies 25444 | -5/Hub_04(d) | Discovered exit to Factory (range 9) 25556 | -5/Hub_04(d) | First assault squad dispatched 25569 | -5/Hub_04(d) | Build established: Scavenger-Tank 25693 | -5/Hub_04(d) | Discovered exit to Factory (range 9) 25856 | -5/Hub_04(d) | Discovered exit to Factory (range 7) 25864 | -5/Hub_04(d) | Garrison activated, responded to threat 25966 | -5/Hub_04(d) | Destroyed 7 combat bots 26021 | -5/Hub_04(d) | Network Hub disabled 26165 | -5/Hub_04(d) | Network Hub disabled 26187 | -5/Hub_04(d) | Lost 3 parts (3u) 26201 | -5/Hub_04(d) | Entered Factory 26201 | -4/Factory | Evolved 2 slots: Propulsion x1, Utility x1 26451 | -4/Factory | First assault squad dispatched 26457 | -4/Factory | Discovered new exit (range 12) 26502 | -4/Factory | Identified exit to Upper Caves 26889 | -4/Factory | Discovered new exit (range 15) 26981 | -4/Factory | Spotted B-86 Titan 27010 | -4/Factory | Destroyed B-86 Titan 27039 | -4/Factory | Identified exit to Armory 27118 | -4/Factory | Found Quantum Capacitor 27386 | -4/Factory | Found Prototype Processor 27386 | -4/Factory | Identified Exp. Core Analyzer 27395 | -4/Factory | Found Exp. Core Analyzer 27507 | -4/Factory | Fabricated M-13 Machinist (x1) 27607 | -4/Factory | Lost 4 parts (2p1n1w) 27713 | -4/Factory | Fabricated M-13 Machinist (x1) 27803 | -4/Factory | Build established: Scavenger-Skirmisher 27968 | -4/Factory | Identified exit to Research 28202 | -4/Factory | Entered Upper Caves 28317 | -4/Upper Caves | Build established: Scavenger-Tank 29091 | -4/Upper Caves | Discovered new exit (range 5) 29095 | -4/Upper Caves | Identified exit to Upper Caves 29158 | -4/Upper Caves | Learned location of Testing (-3) 29219 | -4/Upper Caves | Entered another Upper Caves area 29220 | -4/Upper Caves | Identified exit to Warlord 29693 | -4/Upper Caves | Entered Warlord 29746 | -4/Warlord | System corruption cleaned by Quarantine Array 29750 | -4/Warlord | System corruption reached 10% 29768 | -4/Warlord | System corruption cleaned by Quarantine Array 30109 | -4/Warlord | Build established: Scavenger-Skirmisher 30243 | -4/Warlord | Met Warlord 30268 | -4/Warlord | Warlord's base attacked by MAIN.C 30312 | -4/Warlord | Opened Warlord's prototype stash 30317 | -4/Warlord | Found Prototype Device 30317 | -4/Warlord | Identified System Purifier 30326 | -4/Warlord | Found Prototype Hackware 30326 | -4/Warlord | Identified System Mapper 30352 | -4/Warlord | Found Prototype Reactor 30352 | -4/Warlord | Identified Vortex Chain Reactor 30392 | -4/Warlord | Found Prototype Device 30393 | -4/Warlord | Identified Minesniffer Drone Bay 30603 | -4/Warlord | Spotted B-86 Titan 30611 | -4/Warlord | Destroyed B-86 Titan 30613 | -4/Warlord | Build established: Hacker-Skirmisher 30618 | -4/Warlord | Warlord forces counterattacked 30618 | -4/Warlord | Spotted B-90 Cyclops 30631 | -4/Warlord | Spotted Striker 30680 | -4/Warlord | Spotted B-90 Cyclops 30685 | -4/Warlord | Spotted B-86 Titan 30690 | -4/Warlord | Spotted Executioner 30707 | -4/Warlord | Destroyed B-86 Titan 30723 | -4/Warlord | Destroyed Executioner 30758 | -4/Warlord | Found Prototype Device 30758 | -4/Warlord | Identified Adv. Kinecellerator 30759 | -4/Warlord | Lost 13 allies 30768 | -4/Warlord | Spotted Striker 30772 | -4/Warlord | Spotted Striker 30780 | -4/Warlord | Destroyed Striker 30811 | -4/Warlord | Lost 5 allies 30820 | -4/Warlord | Discovered new exit (range 9) 30876 | -4/Warlord | Identified exit to Proximity Caves 30878 | -4/Warlord | Entered Proximity Caves 30906 | -3/Proximity Caves | Lost 3 allies 31351 | -3/Proximity Caves | Spotter reported a threat 31384 | -3/Proximity Caves | Discovered exit to Research (range 13) 31405 | -3/Proximity Caves | Entered Research 31405 | -3/Research | Evolved 2 slots: Utility x2 31605 | -3/Research | Revision forces began assault on 0b10 31691 | -3/Research | Found Fusion Bomb Launcher 31700 | -3/Research | Met up with Revision 17++ 32105 | -3/Research | Research terminal network offline 32309 | -3/Research | Discovered new exit (range 6) 32314 | -3/Research | Identified exit to Testing 32623 | -3/Research | Build established: Hacker-Gunner 32786 | -3/Research | Entered Testing 32868 | -3/Testing | Repaired Exp. Sensor Array 32929 | -3/Testing | Found Prototype Device 32929 | -3/Testing | Identified AEGIS Remote Shield 33157 | -3/Testing | Found Prototype Energy Cannon 33157 | -3/Testing | Identified Disintegrator 33216 | -3/Testing | Build established: Hacker-Skirmisher 33915 | -3/Testing | Repaired HERF Cannon 33961 | -3/Testing | Repaired Hvy. Proton Cannon 34011 | -3/Testing | Repaired Mak. Ablative Armor 34043 | -3/Testing | Repaired Myomer Leg 34145 | -3/Testing | Found Prototype Hackware 34159 | -3/Testing | System corruption reached 10% 34224 | -3/Testing | Found Prototype Device 34224 | -3/Testing | Identified 2N-1CE's Frost Array 34226 | -3/Testing | Identified Ghost Barrier 34307 | -3/Testing | Central database locked down 34337 | -3/Testing | Discovered new exit (range 15) 34372 | -3/Testing | Found Prototype Device 34372 | -3/Testing | Identified Exp. Hardlight Generator 34409 | -3/Testing | Identified exit to Research 34573 | -3/Testing | Entered Research 34573 | -2/Research | Warlord forces began assault on 0b10 34573 | -2/Research | Evolved 2 slots: Power x1, Utility x1 34683 | -2/Research | Research machine network offline 34749 | -2/Research | Met up with Warlord 34759 | -2/Research | Spotted B-90 Cyclops 34836 | -2/Research | Spotted Striker 34843 | -2/Research | Destroyed Striker 34871 | -2/Research | Borebot progress halted 34939 | -2/Research | Build established: Generator-Gunner 35132 | -2/Research | Borebot progress halted 35470 | -2/Research | Discovered new exit (range 6) 35476 | -2/Research | Identified exit to Access 35636 | -2/Research | Spotted Striker 35661 | -2/Research | Destroyed Striker 35704 | -2/Research | Discovered exit to Access (range 7) 35935 | -2/Research | Spotted Executioner 35939 | -2/Research | Destroyed Executioner 35941 | -2/Research | Spotted Executioner 35958 | -2/Research | Destroyed Executioner 36076 | -2/Research | Given Cave Seal Controls access code 36110 | -2/Research | Discovered new exit (range 22) 36116 | -2/Research | Spotted Executioner 36229 | -2/Research | Entered Quarantine 36333 | -2/Quarantine | Found Alien Artifact 36414 | -2/Quarantine | Found Alien Artifact 36616 | -2/Quarantine | Identified Core Reset Matrix 36616 | -2/Quarantine | Identified Hpw. Transdimensional Reconstructor 36747 | -2/Quarantine | Destroyed 7 combat bots 36915 | -2/Quarantine | Spotted Alpha 7 37114 | -2/Quarantine | Build established: Generator-Mutant 37279 | -2/Quarantine | Found Quantum Capacitor 37358 | -2/Quarantine | Discovered exit to Access (range 9) 37425 | -2/Quarantine | Repaired Com. HERF Cannon 37487 | -2/Quarantine | Spotted Fortress 37570 | -2/Quarantine | Found Alien Impact Weapon 37570 | -2/Quarantine | Identified Core Stripper 37681 | -2/Quarantine | Destroyed Fortress 37694 | -2/Quarantine | Found Vortex Chain Reactor 37698 | -2/Quarantine | Found Prototype Device 37698 | -2/Quarantine | Identified Exp. EM Shield 37701 | -2/Quarantine | Found Prototype Device 37701 | -2/Quarantine | Identified Exp. Force Field 37713 | -2/Quarantine | Found Prototype Device 37713 | -2/Quarantine | Identified Thermal Barrier 37731 | -2/Quarantine | Found Prototype Protection 37731 | -2/Quarantine | Identified Centrium Heavy Armor Plating 37738 | -2/Quarantine | Found Vortex Chain Reactor 37829 | -2/Quarantine | Discovered new exit (range 5) 37829 | -2/Quarantine | Discovered new exit (range 6) 37984 | -2/Quarantine | Build established: Generator-Gunner 38229 | -2/Quarantine | First assault squad dispatched 38251 | -2/Quarantine | Entered Section 7 38271 | -2/Section 7 | Found Alien Artifact 38271 | -2/Section 7 | Identified Spacefold Activator 38441 | -2/Section 7 | Spotted B-90 Cyclops 38582 | -2/Section 7 | Spotted S7 Guard 38595 | -2/Section 7 | Destroyed S7 Guard 38604 | -2/Section 7 | Found Corrupted Prototype Protection 38604 | -2/Section 7 | Identified Hvy. Regenerative Plating 38618 | -2/Section 7 | Found Alien Artifact 38669 | -2/Section 7 | Spotted S7 Guard 38747 | -2/Section 7 | Found Alien Artifact 39001 | -2/Section 7 | First assault squad dispatched 39034 | -2/Section 7 | Identified Core Regenerator 39034 | -2/Section 7 | Used Core Regenerator, restored core integrity (+305) 39036 | -2/Section 7 | Identified Core Physics Calibrator 39122 | -2/Section 7 | Repaired Com. HERF Cannon? 39205 | -2/Section 7 | Spotted Executioner 39207 | -2/Section 7 | Spotted Executioner 39235 | -2/Section 7 | Destroyed Executioner 39241 | -2/Section 7 | Destroyed Executioner 39486 | -2/Section 7 | Spotted B-99 Colossus 39529 | -2/Section 7 | System corruption reached 10% 39536 | -2/Section 7 | Destroyed B-99 Colossus 39558 | -2/Section 7 | Lost 4 parts (1p1n2u) 39631 | -2/Section 7 | Found Alien Artifact 39631 | -2/Section 7 | Identified LRC Insulator 39631 | -2/Section 7 | Installed LRC Insulator, 1 resistance modified: EM +25% 39639 | -2/Section 7 | Found Alien Artifact 39639 | -2/Section 7 | Identified LRC Armor 39639 | -2/Section 7 | Installed LRC Armor, increased core integrity (+250) 39686 | -2/Section 7 | Found Alien Artifact 39686 | -2/Section 7 | Identified Integrated Reactor 39686 | -2/Section 7 | Installed Integrated Reactor, increased core energy generation (+10) 39689 | -2/Section 7 | Found Integrated Reactor 39689 | -2/Section 7 | Installed Integrated Reactor, increased core energy generation (+10) 40037 | -2/Section 7 | Spotted Alpha 7 40047 | -2/Section 7 | Spotted Alpha 7 40080 | -2/Section 7 | Crushed by falling debris 40117 | -2/Section 7 | Spotted S7 Guard 40181 | -2/Section 7 | Found Alien Artifact 40219 | -2/Section 7 | Destroyed S7 Guard 40236 | -2/Section 7 | Identified Core Membrane 40236 | -2/Section 7 | Installed Core Membrane, gained immunity to corruption 40266 | -2/Section 7 | Discovered exit to Access (range 18) 40505 | -2/Section 7 | Entered Access 40505 | -1/Access | Evolved 2 slots: Propulsion x1, Utility x1 40528 | -1/Access | Build established: Generator-Tank 40755 | -1/Access | First assault squad dispatched 40853 | -1/Access | Identified exit to Command 40922 | -1/Access | Spotted B-99 Colossus 41232 | -1/Access | Destroyed 8 combat bots 41390 | -1/Access | Spotted B-99 Colossus 42997 | -1/Access | Entered Command 43070 | -1/Command | Repaired Com. Particle Reactor 43247 | -1/Command | First assault squad dispatched 43790 | -1/Command | Destroyed 7 combat bots 43895 | -1/Command | Spotted Executioner 43895 | -1/Command | Spotted Striker 43895 | -1/Command | Spotted Alpha 7 43895 | -1/Command | Spotted Executioner 43923 | -1/Command | Spotted B-99 Colossus 43926 | -1/Command | Spotted Executioner 43926 | -1/Command | Spotted Executioner 43926 | -1/Command | Spotted Striker 43926 | -1/Command | Spotted Alpha 7 43926 | -1/Command | Discovered new exit (range 16) 43929 | -1/Command | Spotted B-99 Colossus 43935 | -1/Command | Destroyed Striker 43935 | -1/Command | Destroyed Striker 43957 | *** | Escaped! Last Messages --------------- 43952_ Penetrated by Slug. 43953_ Knocked back. 43953_ Penetrated by Slug. 43954_ Imp. Quantum Reactor destroyed. 43954_ Penetrated by Slug. 43954_ Slug penetrates Wall. 43954_ Penetrated by Slug. 43954_ Critical hit (Destroy). 43954_ Hvy. Shield Leg destroyed. 43955_ Penetrated by Slug. 43955_ P-80 Master resets Alpha 7, system corruption cleaned. 43956_ Hvy. Regenerative Plating destroyed. 43956_ Penetrated by Slug. 43956_ Exp. EM Shield destroyed. 43956_ Penetrated by Slug. 43956_ Core Membrane filtered system corruption (1). 43957_ Penetrated by Slug. 43957_ Knocked back. 43957_ Penetrated by Slug. 43957_ Slug penetrates Wall. Map ----- +----------------------------------------------------+ | ?????????????????????????????????????????????????? | | ?????????????????????????????????????????????????? | | ?????????????????????????????????????????????????? | | ?????????????????????????????????????????????????? | | ?????????????????????????????????????????????????? | | ?????????????????????????????????????????????????? | | ?????????????????????????????????????????????????? | | ?????????????????????????????????????????????????? | | ?????????????????????????????????????????????????? | | ????????????????????????????????????????????????## | | ??????????????????????????????????????????????? # | | ??????????????????????????????????????????????? # | | ?????????????????????????????????????????????? = # | | ?????????????????????????????????????????????? # | | ?????????????????????????????????????????????? # | | ????????????????????????????????????????????? + | | ????????????????????????????????????????????? # | | ??????????????????????????######????????????? # | | ??????????????????#########;## ###?????????? = # | | ??????????????????#; ####??##??? " | | ??????????????????#; ###;#### # | | ???????????????????# ^ % # # | | ???????????????????# ^% % ^ ## | | ???????????????????# ^ | | ???????????????????# ^ "" % BB | | ???????????????????# @" % % % BB | | ???????????????????# % BB% % =%p= 7 | | ???????????????????# BB % 7%%E%! | | ???????????????????# ; % ! !!=! | | ???????????????????# ### #### | | ???????????????????# #?########?##/#### | | ???????????????????##############??????????# | | ???????????????????????????????????????????# | | ???????????????????????????????????????????# == | | ???????????????????????????????????????????# == | | ???????????????????????????????????????????####### | | ?????????????????????????????????????????????????? | | ?????????????????????????????????????????????????? | | ?????????????????????????????????????????????????? | | ?????????????????????????????????????????????????? | | ?????????????????????????????????????????????????? | | ?????????????????????????????????????????????????? | | ?????????????????????????????????????????????????? | | ?????????????????????????????????????????????????? | | ?????????????????????????????????????????????????? | | ????????????????????????##############???????????? | | ????????????????????????# #???????????? | | ????????????????????????# ! #???????????? | | ????????????????????????# #???????????? | | ??????????????????????###"""" ############# | +----------------------------------------------------+ Best States ------------- Heat Dissipation 152 Energy Generation 111 Energy Capacity 940 Matter Stores 300 Matter Capacity 300 Sight Range 23 Robot Scan Range 20 Terrain Scan Range 14 Terrain Scan Density 10 Jamming Range 14 Base Temperature (-) 200 Corruption Block 8 Armor Coverage 1200 Resistance: TH 20 Resistance: EM 100 Weapon Shielding 90 Evasion (%) 70 Targeting Accuracy 8 Core Analysis 8 Recoil Reduction 6 Particle Charging 25 Offensive Hacking 20 Defensive Hacking 20 Item Schematics ----------------- Exp. Sensor Array | -9/Materials | Scanalyzed Cryofiber Web | -8/Materials | Scanalyzed Lightning Gun | -7/Factory | Scanalyzed Combat Drone Bay | -7/Data Miner | Free Lgt. Regenerative Plating | -7/Data Miner | Free Biomechanical Wings | -7/Data Miner | Free Gravity Neutralizer | -7/Data Miner | Free Gui. EMP Blaster | -7/Data Miner | Free Linear Gravjet | -7/Data Miner | Free Imp. Coolant Injector | -7/Data Miner | Free KE Penetrator | -7/Data Miner | Free Imp. Recalibrator | -7/Data Miner | Free Imp. Kinecellerator | -6/Zion | Archive Cloaking Device | -6/Zion | Archive Railgun | -6/Zion | Archive Plasma Rifle | -6/Zion | Archive Antigrav System | -6/Zion | Archive Hpw. Shock Rifle | -6/Zion | Archive Neutrino Core | -6/Zion | Archive Force Field | -6/Zion | Archive Hyp. Coil Gun | -6/Zion | Archive EM Shield | -6/Zion | Archive Adv. Thermal Shield | -6/Zion | Archive Thermic Laser | -6/Zion | Archive Lrn. Tractor Beam | -6/Zion | Archive Hyp. Gauss Rifle | -6/Zion | Archive Enh. Coil Gun | -2/Quarantine | Archive Exp. Core Analyzer | -2/Quarantine | Archive Robot Schematics ------------------ M-13 Machinist | -10/Materials | Hacked G-47 Trooper | -7/Data Miner | Free X-67 Chaingunner | -7/Data Miner | Free B-48 Gladiator | -7/Data Miner | Free R-10 Processor | -7/Data Miner | Free E-15 Imp | -6/Zion | Archive C-57 Dissector | -6/Zion | Archive Fabricated ------------ Lightning Gun | x2 | -7/Factory M-13 Machinist | x1 | -4/Factory M-13 Machinist | x1 | -4/Factory Repaired ---------- Exp. Sensor Array | 62% | -8/Materials | Broken Cld. Ion Engine | 16% | -8/Materials Cld. Ion Engine | 58% | -7/Factory Exp. Sensor Array | 48% | -3/Testing HERF Cannon | 13% | -3/Testing Hvy. Proton Cannon | 49% | -3/Testing Mak. Ablative Armor | 38% | -3/Testing Myomer Leg | 38% | -3/Testing Com. HERF Cannon | 65% | -2/Quarantine Com. HERF Cannon | 15% | -2/Section 7 Com. Particle Reactor | 50% | -1/Command Alien Tech Used ----------------- Core Stripper Spacefold Activator Core Regenerator Core Physics Calibrator LRC Insulator LRC Armor Integrated Reactor Core Membrane Achievements -------------- None Challenges ------------ None Game ------ Seed BurstThrusterAutopenetrator Manual? 0 Play Time 04:49:41 Cumulative 741.5 hours Start 2025.09.07 @ 17:19:51 End 2025.09.08 @ 16:09:49 Sessions 17 Manual Loads 0 Difficulty Rogue Special Mode None Game No. 382 Rogue 382 Adventurer 0 Explorer 0 Win Type 0 Total 60 Types 41/4/5/2/1/1/3/1/1/1 Lore% 92 Gallery% 86 Achievement% 91 Wizard Run 0 Options --------- Layout 0 ASCII 0 Keyboard 1 Movement Numpad Keybinds 0 Fullscreen 2 Font 18/SmallcapsGlow Map View 76x50 Zoom Use 0% Tactical HUD 1 Map Filters NONE Filters NONE Steam 1 RUN: 2a740f2b-393a-4b1e-8f4e-c8e25c867854